Workbook

Sheet Calcul Coef U
B4: RESISTANCE SUPERFICIELLES
B5: Position de la paroi | C5: Face externe | D5: Rsi | E5: Rse | F5: Total
B6: Flux ascendant ↑ cloisons horizontales | C6: extérieur, passage ouvert, local ouvert | D6: 0.1 | E6: 0.04 | F6: =SUM(D6:E6) -> 0.14
B7: Flux ascendant ↑ cloisons horizontales | C7: comble, local non chauffé | D7: 0.1 | E7: 0.1 | F7: =SUM(D7:E7) -> 0.2 | G7: Flux horizontal ← cloisons verticales extérieur, local ouvert
B8: Flux horizontal ← cloisons verticales | C8: extérieur, local ouvert | D8: 0.13 | E8: 0.04 | F8: 0.17 | G8: =VLOOKUP(Flux,RSIRSE3,2,FALSE) -> 0.17
B9: Flux horizontal ← cloisons verticales | C9: comble, local non chauffé | D9: 0.13 | E9: 0.13 | F9: 0.26 | G9: Matériaux non renseigné (Cf.Résistances thermiques)
B10: Flux descendant ↓ cloisons horizontales | C10: extérieur, passage ouvert, local ouvert | D10: 0.17 | E10: 0.04 | F10: 0.21 | G10: =IFERROR(VLOOKUP(Deper2,'Regle Th-U'!B6:D291,3,FALSE),0) -> 0
B11: Flux descendant ↓ cloisons horizontales | C11: vide sanitaire, local non chauffé | D11: 0.17 | E11: 0.17 | F11: 0.34
L12: Recommandation ACIVF 01-2006; chap. 9.7 :
B13: Flux ascendant ↑ cloisons horizontales
B15: extérieur, passage ouvert, local ouvert | C15: =F6 -> 0.14
B16: comble, local non chauffé | C16: =F7 -> 0.2 | G16: Tableau récapitulatif des Coefficients :
G17: Paroi | H17: U (W/m².K)
B18: Flux horizontal ← cloisons verticales | F18: 1 | G18: =CELL("contenu",C38)&IF(C38=0,"","") ->  | H18: =G53 -> 0
F19: 2 | G19: =CELL("contenu",C57)&IF(C57=0,"","") ->  | H19: =G72 -> 0
B20: extérieur, local ouvert | C20: =F8 -> 0.17 | F20: 3 | G20: =CELL("contenu",C75)&IF(C75=0,"","") ->  | H20: =G90 -> 0
B21: comble, local non chauffé | C21: =F9 -> 0.26 | F21: 4 | G21: =CELL("contenu",C93)&IF(C93=0,"","") ->  | H21: =G108 -> 0
F22: 5 | G22: =CELL("contenu",C113)&IF(C113=0,"","") ->  | H22: =G128 -> 0
B23: Flux descendant ↓ cloisons horizontales
B25: extérieur, passage ouvert, local ouvert | C25: =F10 -> 0.21
B26: vide sanitaire, local non chauffé | C26: =F11 -> 0.34
B29: Flux ascendant ↑ cloisons horizontales extérieur, passage ouvert, local ouvert | C29: 0.14
B30: Flux ascendant ↑ cloisons horizontales comble, local non chauffé | C30: 0.2 | G30: Calcul du Coefficient minorateur bu :
B31: Flux horizontal ← cloisons verticales extérieur, local ouvert | C31: 0.17 | G31: Température Intérieure | H31: 22
B32: Flux horizontal ← cloisons verticales comble, local non chauffé | C32: 0.26 | G32: Température Extérieure | H32: ='local 1'!H5 -> -9
B33: Flux descendant ↓ cloisons horizontales extérieur, passage ouvert, local ouvert | C33: 0.21 | G33: Température d'Equilibre Local non chauffé
B34: Flux descendant ↓ cloisons horizontales vide sanitaire, local non chauffé | C34: 0.34 | G34: Coefficient minorateur b | H34: =(H31-H33)/(H31-H32) -> 0.7096774194
A38: 1 | B38: Paroi : | C38: Plancher Bas Zone Habitable Terre-Plein
B39: Désignation | D39: e (m) | E39: Ru | F39: λ (W/m.k) | G39: Rsi + ε(e/λ)[+ R ]+ Rse | H39: Références
B40: Rsi | G40: 0 | H40: Règles Th-U; fascicule ; chap. 1.5.2
B41: Matériaux non renseigné (Cf.Résistances thermiques) | F41: =IFERROR(VLOOKUP(entree1,RegleThU,3,FALSE),0) -> 0 | G41: =IFERROR(IF($F41<>0,$D41/$F41,$E41),0) -> 0 | H41: =IFERROR(VLOOKUP(entree1,RegleThU,8,FALSE),"")&IF($F41=0,"","") -> 
B42: Matériaux non renseigné (Cf.Résistances thermiques) | F42: =IFERROR(VLOOKUP(entree2,RegleThU,3,FALSE),0) -> 0 | G42: =IFERROR(IF($F42<>0,$D42/$F42,$E42),0) -> 0 | H42: =IFERROR(VLOOKUP(entree2,RegleThU,8,FALSE),"")&IF($F42=0,"","") -> 
B43: Matériaux non renseigné (Cf.Résistances thermiques) | F43: =IFERROR(VLOOKUP(entree3,RegleThU,3,FALSE),0) -> 0 | G43: 0 | H43: =IFERROR(VLOOKUP(entree3,RegleThU,8,FALSE),"")&IF($F43=0,"","") -> 
B44: Matériaux non renseigné (Cf.Résistances thermiques) | F44: =IFERROR(VLOOKUP(entree4,RegleThU,3,FALSE),0) -> 0 | G44: 0 | H44: =IFERROR(VLOOKUP(entree4,RegleThU,8,FALSE),"")&IF($F44=0,"","") -> 
B45: Matériaux non renseigné (Cf.Résistances thermiques) | F45: =IFERROR(VLOOKUP(entree5,RegleThU,3,FALSE),0) -> 0 | G45: 0 | H45: =IFERROR(VLOOKUP(entree5,RegleThU,8,FALSE),"")&IF($F45=0,"","") -> 
B46: Matériaux non renseigné (Cf.Résistances thermiques) | F46: =IFERROR(VLOOKUP(entree6,RegleThU,3,FALSE),0) -> 0 | G46: 0 | H46: =IFERROR(VLOOKUP(entree6,RegleThU,8,FALSE),"")&IF($F46=0,"","") -> 
B47: Matériaux non renseigné (Cf.Résistances thermiques) | F47: =IFERROR(VLOOKUP(entree7,RegleThU,3,FALSE),0) -> 0 | G47: 0 | H47: =IFERROR(VLOOKUP(entree7,RegleThU,8,FALSE),"")&IF($F47=0,"","") -> 
B48: Matériaux non renseigné (Cf.Résistances thermiques) | F48: =IFERROR(VLOOKUP(entree8,RegleThU,3,FALSE),0) -> 0 | G48: 0 | H48: =IFERROR(VLOOKUP(entree8,RegleThU,8,FALSE),"")&IF($F48=0,"","") -> 
B49: Matériaux non renseigné (Cf.Résistances thermiques) | F49: =IFERROR(VLOOKUP(entree9,RegleThU,3,FALSE),0) -> 0 | G49: 0 | H49: =IFERROR(VLOOKUP(entree9,RegleThU,8,FALSE),"")&IF($F49=0,"","") -> 
B50: Matériaux non renseigné (Cf.Résistances thermiques) | F50: =IFERROR(VLOOKUP(entree10,RegleThU,3,FALSE),0) -> 0 | G50: 0 | H50: =IFERROR(VLOOKUP(entree10,RegleThU,8,FALSE),"")&IF($F50=0,"","") -> 
B51: Rse | G51: 0 | H51: Règles Th-U; fascicule ; chap. 1.5.2
F52: R (m².K/W) | G52: =SUM(G40:G51) -> 0
F53: U (W/m².K) | G53: =IFERROR(1/G52,0) -> 0
A57: 2 | B57: Paroi : | C57: Plancher Bas Garage Terre-Plein
B58: Désignation | D58: e (m) | E58: Ru | F58: λ (W/m.k) | G58: Rsi + ε(e/λ)[+ R ]+ Rse | H58: Références
B59: Rsi | G59: 0 | H59: Règles Th-U; fascicule ; chap. 1.5.2
B60: Matériaux non renseigné (Cf.Résistances thermiques) | F60: =IFERROR(VLOOKUP(entree11,RegleThU,3,FALSE),0) -> 0 | G60: =IFERROR(IF($F60<>0,$D60/$F60,$E60),0) -> 0 | H60: =IFERROR(VLOOKUP(entree11,RegleThU,8,FALSE),"")&IF($F60=0,"","") -> 
B61: Matériaux non renseigné (Cf.Résistances thermiques) | F61: =IFERROR(VLOOKUP(entree12,RegleThU,3,FALSE),0) -> 0 | G61: =IFERROR(IF($F61<>0,$D61/$F61,$E61),0) -> 0 | H61: =IFERROR(VLOOKUP(entree12,RegleThU,8,FALSE),"")&IF($F61=0,"","") -> 
B62: Matériaux non renseigné (Cf.Résistances thermiques) | F62: =IFERROR(VLOOKUP(entree13,RegleThU,3,FALSE),0) -> 0 | G62: 0 | H62: =IFERROR(VLOOKUP(entree13,RegleThU,8,FALSE),"")&IF($F62=0,"","") -> 
B63: Matériaux non renseigné (Cf.Résistances thermiques) | F63: =IFERROR(VLOOKUP(entree14,RegleThU,3,FALSE),0) -> 0 | G63: 0 | H63: =IFERROR(VLOOKUP(entree14,RegleThU,8,FALSE),"")&IF($F63=0,"","") -> 
B64: Matériaux non renseigné (Cf.Résistances thermiques) | F64: =IFERROR(VLOOKUP(entree15,RegleThU,3,FALSE),0) -> 0 | G64: 0 | H64: =IFERROR(VLOOKUP(entree15,RegleThU,8,FALSE),"")&IF($F64=0,"","") -> 
B65: Matériaux non renseigné (Cf.Résistances thermiques) | F65: =IFERROR(VLOOKUP(entree16,RegleThU,3,FALSE),0) -> 0 | G65: 0 | H65: =IFERROR(VLOOKUP(entree16,RegleThU,8,FALSE),"")&IF($F65=0,"","") -> 
B66: Matériaux non renseigné (Cf.Résistances thermiques) | F66: =IFERROR(VLOOKUP(entree17,RegleThU,3,FALSE),0) -> 0 | G66: 0 | H66: =IFERROR(VLOOKUP(entree17,RegleThU,8,FALSE),"")&IF($F66=0,"","") -> 
B67: Matériaux non renseigné (Cf.Résistances thermiques) | F67: =IFERROR(VLOOKUP(entree18,RegleThU,3,FALSE),0) -> 0 | G67: 0 | H67: =IFERROR(VLOOKUP(entree18,RegleThU,8,FALSE),"")&IF($F67=0,"","") -> 
B68: Matériaux non renseigné (Cf.Résistances thermiques) | F68: =IFERROR(VLOOKUP(entree19,RegleThU,3,FALSE),0) -> 0 | G68: 0 | H68: =IFERROR(VLOOKUP(entree19,RegleThU,8,FALSE),"")&IF($F68=0,"","") -> 
B69: Matériaux non renseigné (Cf.Résistances thermiques) | F69: =IFERROR(VLOOKUP(entree20,RegleThU,3,FALSE),0) -> 0 | G69: 0 | H69: =IFERROR(VLOOKUP(entree20,RegleThU,8,FALSE),"")&IF($F69=0,"","") -> 
B70: Rse | G70: 0 | H70: Règles Th-U; fascicule ; chap. 1.5.2
F71: R (m².K/W) | G71: =SUM(G59:G70) -> 0
F72: U (W/m².K) | G72: =IFERROR(1/G71,0) -> 0
A75: 3 | B75: Paroi :
B76: Désignation | D76: e (m) | E76: Ru | F76: λ (W/m.k) | G76: Rsi + ε(e/λ)[+ R ]+ Rse | H76: Références
B77: Rsi | G77: 0 | H77: Règles Th-U; fascicule ; chap. 1.5.2
B78: Matériaux non renseigné (Cf.Résistances thermiques) | F78: =IFERROR(VLOOKUP(entree21,RegleThU,3,FALSE),0) -> 0 | G78: =IFERROR(IF($F78<>0,$D78/$F78,$E78),0) -> 0 | H78: =IFERROR(VLOOKUP(entree21,RegleThU,8,FALSE),"")&IF($F78=0,"","") -> 
B79: Matériaux non renseigné (Cf.Résistances thermiques) | F79: =IFERROR(VLOOKUP(entree22,RegleThU,3,FALSE),0) -> 0 | G79: =IFERROR(IF($F79<>0,$D79/$F79,$E79),0) -> 0 | H79: =IFERROR(VLOOKUP(entree22,RegleThU,8,FALSE),"")&IF($F79=0,"","") -> 
B80: Matériaux non renseigné (Cf.Résistances thermiques) | F80: =IFERROR(VLOOKUP(entree23,RegleThU,3,FALSE),0) -> 0 | G80: 0 | H80: =IFERROR(VLOOKUP(entree23,RegleThU,8,FALSE),"")&IF($F80=0,"","") -> 
B81: Matériaux non renseigné (Cf.Résistances thermiques) | F81: =IFERROR(VLOOKUP(entree24,RegleThU,3,FALSE),0) -> 0 | G81: 0 | H81: =IFERROR(VLOOKUP(entree24,RegleThU,8,FALSE),"")&IF($F81=0,"","") -> 
B82: Matériaux non renseigné (Cf.Résistances thermiques) | F82: =IFERROR(VLOOKUP(entree25,RegleThU,3,FALSE),0) -> 0 | G82: 0 | H82: =IFERROR(VLOOKUP(entree25,RegleThU,8,FALSE),"")&IF($F82=0,"","") -> 
B83: Matériaux non renseigné (Cf.Résistances thermiques) | F83: =IFERROR(VLOOKUP(entree26,RegleThU,3,FALSE),0) -> 0 | G83: 0 | H83: =IFERROR(VLOOKUP(entree26,RegleThU,8,FALSE),"")&IF($F83=0,"","") -> 
B84: Matériaux non renseigné (Cf.Résistances thermiques) | F84: =IFERROR(VLOOKUP(entree27,RegleThU,3,FALSE),0) -> 0 | G84: 0 | H84: =IFERROR(VLOOKUP(entree27,RegleThU,8,FALSE),"")&IF($F84=0,"","") -> 
B85: Matériaux non renseigné (Cf.Résistances thermiques) | F85: =IFERROR(VLOOKUP(entree28,RegleThU,3,FALSE),0) -> 0 | G85: 0 | H85: =IFERROR(VLOOKUP(entree28,RegleThU,8,FALSE),"")&IF($F85=0,"","") -> 
B86: Matériaux non renseigné (Cf.Résistances thermiques) | F86: =IFERROR(VLOOKUP(entree29,RegleThU,3,FALSE),0) -> 0 | G86: 0 | H86: =IFERROR(VLOOKUP(entree29,RegleThU,8,FALSE),"")&IF($F86=0,"","") -> 
B87: Matériaux non renseigné (Cf.Résistances thermiques) | F87: =IFERROR(VLOOKUP(entree30,RegleThU,3,FALSE),0) -> 0 | G87: 0 | H87: =IFERROR(VLOOKUP(entree30,RegleThU,8,FALSE),"")&IF($F87=0,"","") -> 
B88: Rse | G88: 0 | H88: Règles Th-U; fascicule ; chap. 1.5.2
F89: R (m².K/W) | G89: =SUM(G77:G88) -> 0
F90: U (W/m².K) | G90: =IFERROR(1/G89,0) -> 0
A93: 4 | B93: Paroi :
B94: Désignation | D94: e (m) | E94: Ru | F94: λ (W/m.k) | G94: Rsi + ε(e/λ)[+ R ]+ Rse | H94: Références
B95: Rsi | G95: 0 | H95: Règles Th-U; fascicule ; chap. 1.5.2
B96: Matériaux non renseigné (Cf.Résistances thermiques) | F96: =IFERROR(VLOOKUP(entree31,RegleThU,3,FALSE),0) -> 0 | G96: =IFERROR(IF($F96<>0,$D96/$F96,$E96),0) -> 0 | H96: =IFERROR(VLOOKUP(entree31,RegleThU,8,FALSE),"")&IF($F96=0,"","") -> 
B97: Matériaux non renseigné (Cf.Résistances thermiques) | F97: =IFERROR(VLOOKUP(entree32,RegleThU,3,FALSE),0) -> 0 | G97: =IFERROR(IF($F97<>0,$D97/$F97,$E97),0) -> 0 | H97: =IFERROR(VLOOKUP(entree32,RegleThU,8,FALSE),"")&IF($F97=0,"","") -> 
B98: Matériaux non renseigné (Cf.Résistances thermiques) | F98: =IFERROR(VLOOKUP(entree33,RegleThU,3,FALSE),0) -> 0 | G98: 0 | H98: =IFERROR(VLOOKUP(entree33,RegleThU,8,FALSE),"")&IF($F98=0,"","") -> 
B99: Matériaux non renseigné (Cf.Résistances thermiques) | F99: =IFERROR(VLOOKUP(entree34,RegleThU,3,FALSE),0) -> 0 | G99: 0 | H99: =IFERROR(VLOOKUP(entree34,RegleThU,8,FALSE),"")&IF($F99=0,"","") -> 
B100: Matériaux non renseigné (Cf.Résistances thermiques) | F100: =IFERROR(VLOOKUP(entree35,RegleThU,3,FALSE),0) -> 0 | G100: 0 | H100: =IFERROR(VLOOKUP(entree35,RegleThU,8,FALSE),"")&IF($F100=0,"","") -> 
B101: Matériaux non renseigné (Cf.Résistances thermiques) | F101: =IFERROR(VLOOKUP(entree36,RegleThU,3,FALSE),0) -> 0 | G101: 0 | H101: =IFERROR(VLOOKUP(entree36,RegleThU,8,FALSE),"")&IF($F101=0,"","") -> 
B102: Matériaux non renseigné (Cf.Résistances thermiques) | F102: =IFERROR(VLOOKUP(entree37,RegleThU,3,FALSE),0) -> 0 | G102: 0 | H102: =IFERROR(VLOOKUP(entree37,RegleThU,8,FALSE),"")&IF($F102=0,"","") -> 
B103: Matériaux non renseigné (Cf.Résistances thermiques) | F103: =IFERROR(VLOOKUP(entree38,RegleThU,3,FALSE),0) -> 0 | G103: 0 | H103: =IFERROR(VLOOKUP(entree38,RegleThU,8,FALSE),"")&IF($F103=0,"","") -> 
B104: Matériaux non renseigné (Cf.Résistances thermiques) | F104: =IFERROR(VLOOKUP(entree39,RegleThU,3,FALSE),0) -> 0 | G104: 0 | H104: =IFERROR(VLOOKUP(entree39,RegleThU,8,FALSE),"")&IF($F104=0,"","") -> 
B105: Matériaux non renseigné (Cf.Résistances thermiques) | F105: =IFERROR(VLOOKUP(entree40,RegleThU,3,FALSE),0) -> 0 | G105: 0 | H105: =IFERROR(VLOOKUP(entree40,RegleThU,8,FALSE),"")&IF($F105=0,"","") -> 
B106: Rse | G106: 0 | H106: Règles Th-U; fascicule ; chap. 1.5.2
F107: R (m².K/W) | G107: =SUM(G95:G106) -> 0
F108: U (W/m².K) | G108: =IFERROR(1/G107,0) -> 0
B111: Echanges par le sol : (calculs effectués selon guide AICVF 01-2006, chap. 7)
A113: 5 | B113: Paroi :
B114: Désignation | D114: e (m) | E114: Ru | F114: λ (W/m.k) | G114: Rsi + ε(e/λ)[+ R ]+ Rse | H114: Références
B115: Rsi | G115: 0 | H115: Règles Th-U; fascicule ; chap. 1.5.2
B116: Matériaux non renseigné (Cf.Résistances thermiques) | F116: =IFERROR(VLOOKUP(entree41,RegleThU,3,FALSE),0) -> 0 | G116: =IFERROR(IF($F116<>0,$D116/$F116,$E116),0) -> 0 | H116: =IFERROR(VLOOKUP(entree41,RegleThU,8,FALSE),"")&IF($F96=0,"","") -> 
B117: Matériaux non renseigné (Cf.Résistances thermiques) | F117: =IFERROR(VLOOKUP(entree42,RegleThU,3,FALSE),0) -> 0 | G117: =IFERROR(IF($F117<>0,$D117/$F117,$E117),0) -> 0 | H117: =IFERROR(VLOOKUP(entree42,RegleThU,8,FALSE),"")&IF($F96=0,"","") -> 
B118: Matériaux non renseigné (Cf.Résistances thermiques) | F118: =IFERROR(VLOOKUP(entree43,RegleThU,3,FALSE),0) -> 0 | G118: 0 | H118: =IFERROR(VLOOKUP(entree43,RegleThU,8,FALSE),"")&IF($F96=0,"","") -> 
B119: Matériaux non renseigné (Cf.Résistances thermiques) | F119: =IFERROR(VLOOKUP(entree44,RegleThU,3,FALSE),0) -> 0 | G119: 0 | H119: =IFERROR(VLOOKUP(entree44,RegleThU,8,FALSE),"")&IF($F96=0,"","") -> 
B120: Matériaux non renseigné (Cf.Résistances thermiques) | F120: =IFERROR(VLOOKUP(entree45,RegleThU,3,FALSE),0) -> 0 | G120: 0 | H120: =IFERROR(VLOOKUP(entree45,RegleThU,8,FALSE),"")&IF($F96=0,"","") -> 
B121: Matériaux non renseigné (Cf.Résistances thermiques) | F121: =IFERROR(VLOOKUP(entree46,RegleThU,3,FALSE),0) -> 0 | G121: 0 | H121: =IFERROR(VLOOKUP(entree46,RegleThU,8,FALSE),"")&IF($F96=0,"","") -> 
B122: Matériaux non renseigné (Cf.Résistances thermiques) | F122: =IFERROR(VLOOKUP(entree47,RegleThU,3,FALSE),0) -> 0 | G122: 0 | H122: =IFERROR(VLOOKUP(entree47,RegleThU,8,FALSE),"")&IF($F96=0,"","") -> 
B123: Matériaux non renseigné (Cf.Résistances thermiques) | F123: =IFERROR(VLOOKUP(entree48,RegleThU,3,FALSE),0) -> 0 | G123: 0 | H123: =IFERROR(VLOOKUP(entree48,RegleThU,8,FALSE),"")&IF($F96=0,"","") -> 
B124: Matériaux non renseigné (Cf.Résistances thermiques) | F124: =IFERROR(VLOOKUP(entree49,RegleThU,3,FALSE),0) -> 0 | G124: 0 | H124: =IFERROR(VLOOKUP(entree49,RegleThU,8,FALSE),"")&IF($F96=0,"","") -> 
B125: Matériaux non renseigné (Cf.Résistances thermiques) | F125: =IFERROR(VLOOKUP(entree50,RegleThU,3,FALSE),0) -> 0 | G125: 0 | H125: =IFERROR(VLOOKUP(entree50,RegleThU,8,FALSE),"")&IF($F96=0,"","") -> 
B126: Rse | G126: 0 | H126: Règles Th-U; fascicule ; chap. 1.5.2
F127: R (m².K/W) | G127: =SUM(G115:G126) -> 0
F128: U (W/m².K) | G128: =IFERROR(1/G127,0) -> 0
B130: Ug1 (Pertes basses) | D130: Surface | E130: Périmètre* | F130: Hauteur | H130: Références
B131: Calcul coef. B (Surface / 0,5*périmètre*) | D131: 32 | E131: 40 | G131: =IFERROR(D131/(0.5*E131),0) -> 1.6 | H131: Guide AICVF 01-2006; chap. 7.4
B132: Calcul coef. α (1,571*B/(0,21+R1+0,785h)) | F132: 0 | G132: =(1.571*G131)/(0.21+G127+(0.785*F132)) -> 11.96952381 | H132: Guide AICVF 01-2006; chap. 7.4
B133: Détermination coef. β (AICVF; chap. 7.6) | G133: =IFERROR(VLOOKUP(Alpha,Beta,2,TRUE),0) -> 2.54 | H133: Guide AICVF 01-2006; chap. 7.6
B134: * périmètre en contact avec terre-plein | F134: Ug1 (W/m².K) | G134: =IFERROR((0.2/G131)*G133,0) -> 0.3175
B136: Ug2 (Pertes latérales) | D136: Surface | E136: Périmètre* | F136: Hauteur | G136: R2 | I136: Références
B137: Calcul coef. α (0,785*h/(0,17+R2) | H137: =(0.785*F137)/(0.17+G137) -> 0 | I137: Guide AICVF 01-2006; chap. 7.5
B138: Détermination coef. β (AICVF; chap. 7.6) | I138: Guide AICVF 01-2006; chap. 7.6
G139: Ug2 (W/m².K) | H139: =IFERROR((0.382/F137)*H138,0) -> 0

Sheet Regle Th-U
C1: Terre cuite ρ nominal = 1900
C2: =VLOOKUP(Deper,B6:D291,3,FALSE) -> 0.74
B3: Matériaux ou application | C3: Masse volumique sèche (ρ) en kg/m3 | D3: Conductivité thermique utile (λ) en W/(m.K) | E3: Capacité thermique massique (Cp) en J/(kg.K) | F3: Facteur de résistance à la diffusion devapeur d’eau (μ) | J3: Perméabilité type | K3: Coef. | L3: Alpha | M3: Beta
F4: sec | G4: humide | I4: Référence | J4: Non renseigné | L4: 0 | M4: 0
B5: Matériaux non renseigné (Cf.Résistances thermiques) | J5: Entrée d'air module 15 | K5: 3.4 | L5: 0.02 | M5: 0.02
A6: 1 | B6: Pierres / Roches plutoniques et métamorphiques / Gneiss, porphyres | C6: 2 300 ≤ ρ ≤ 2 900 | D6: 3.5 | E6: 1000 | F6: 10000 | G6: 10000 | H6: =OFFSET(B6,0,2,1,1) -> 3.5 | I6: Règle Th-U; fasc2 2.1.1. p3 | J6: Entrée d'air module 22 | K6: 5 | L6: 0.04 | M6: 0.04
A7: 2 | B7: Pierres / Roches plutoniques et métamorphiques / Granites | C7: 2 500 ≤ ρ ≤ 2 700 | D7: 2.8 | E7: 1000 | F7: 10000 | G7: 10000 | H7: =OFFSET(B7,0,2,1,1) -> 2.8 | I7: Règle Th-U; fasc2 2.1.1. p3 | J7: Entrée d'air module 30 | K7: 6.8 | L7: 0.06 | M7: 0.06
A8: 3 | B8: Pierres / Roches plutoniques et métamorphiques / Schistes, ardoises | C8: 2 000 ≤ ρ ≤ 2 800 | D8: 2.2 | E8: 1000 | F8: 1000 | G8: 800 | H8: 2.2 | I8: Règle Th-U; fasc2 2.1.1. p3 | J8: Entrée d'air module 45 | K8: 10.2 | L8: 0.08 | M8: 0.08
A9: 4 | B9: Roches volcaniques / Basaltes | C9: 2 700 ≤ ρ ≤ 3 000 | D9: 1.6 | E9: 1000 | F9: 10000 | G9: 10000 | H9: 1.6 | I9: Règle Th-U; fasc2 2.1.2. p3 | J9: Entrée d'air module 60 | K9: 13.6 | L9: 0.1 | M9: 0.1
A10: 5 | B10: Roches volcaniques / Trachytes, andésites | C10: 2 000 ≤ ρ ≤ 2 700 | D10: 1.1 | E10: 1000 | F10: 20 | G10: 15 | H10: 1.1 | I10: Règle Th-U; fasc2 2.1.2. p3 | J10: Simple fenêtre ou porte-fenêtre - classe A3 | K10: 0.3 | L10: 0.12 | M10: 0.11
A11: 6 | B11: Roches volcaniques / Pierres naturelles poreuses, ex : laves | C11: ρ ≤ 1 600 | D11: 0.55 | E11: 1000 | F11: 20 | G11: 15 | H11: 0.55 | I11: Règle Th-U; fasc2 2.1.2. p3 | J11: Simple fenêtre ou porte-fenêtre - classe A2 | K11: 0.8 | L11: 0.13 | M11: 0.12
A12: 7 | B12: Pierres calcaires / Marbres | C12: 2 600 ≤ ρ ≤ 2 800 | D12: 3.5 | E12: 1000 | F12: 10000 | G12: 10000 | H12: 3.5 | I12: Règle Th-U; fasc2 2.1.3. p3 | J12: Simple fenêtre ou porte-fenêtre - classe A1 | K12: 2 | L12: 0.14 | M12: 0.13
A13: 8 | B13: Pierres calcaires / Pierres froides ou extra-dures | C13: 2 200 ≤ ρ ≤ 2 590 | D13: 2.3 | E13: 1000 | F13: 250 | G13: 200 | H13: 2.3 | I13: Règle Th-U; fasc2 2.1.3. p3 | J13: Simple fenêtre ou porte-fenêtre - non classée | K13: 4 | L13: 0.15 | M13: 0.14
A14: 9 | B14: Pierres calcaires / Pierres dures | C14: 2 000 ≤ ρ ≤ 2 190 | D14: 1.7 | E14: 1000 | F14: 200 | G14: 150 | H14: 1.7 | I14: Règle Th-U; fasc2 2.1.3. p3 | J14: Double fenêtre (A3 + quelconque) | K14: 0.3 | L14: 0.16 | M14: 0.15
A15: 10 | B15: Pierres calcaires / Pierres fermes, demi-fermes | C15: 1 800 ≤ ρ ≤ 1 990 | D15: 1.4 | E15: 1000 | F15: 50 | G15: 40 | H15: 1.4 | I15: Règle Th-U; fasc2 2.1.3. p3 | J15: Double fenêtre (2 x A2) | K15: 0.5 | L15: 0.17 | M15: 0.16
A16: 11 | B16: Pierres calcaires / Pierres tendres n°2 et 3 | C16: 1 600 ≤ ρ ≤ 1 790 | D16: 1.1 | E16: 1000 | F16: 40 | G16: 25 | H16: 1.1 | I16: Règle Th-U; fasc2 2.1.3. p3 | J16: Double fenêtre (A2 + A1) | K16: 0.7 | L16: 0.18 | M16: 0.17
A17: 12 | B17: Pierres calcaires / Pierres très tendres | C17: ρ ≤ 1 590 | D17: 0.85 | E17: 1000 | F17: 30 | G17: 20 | H17: 0.85 | I17: Règle Th-U; fasc2 2.1.3. p3 | J17: Double fenêtre (A2 + quelconque) | K17: 0.8 | L17: 0.19 | M17: 0.175
A18: 13 | B18: Grès quartzeux | C18: 2 600 ≤ ρ ≤ 2 800 | D18: 2.6 | E18: 1000 | F18: 40 | G18: 30 | H18: 2.6 | I18: Règle Th-U; fasc2 2.1.4 p3 | J18: Double fenêtre (2 x A1) | K18: 1.2 | L18: 0.2 | M18: 0.18
A19: 14 | B19: Grès (silice) | C19: 2 200 ≤ ρ ≤ 2 590 | D19: 2.3 | E19: 1000 | F19: 40 | G19: 30 | H19: 2.3 | I19: Règle Th-U; fasc2 2.1.4 p3 | J19: Double fenêtre (A1 = quelconque) | K19: 1.7 | L19: 0.21 | M19: 0.19
A20: 15 | B20: Grès calcarifères | C20: 2 000 ≤ ρ ≤ 2 700 | D20: 1.9 | E20: 1000 | F20: 30 | G20: 20 | H20: 1.9 | I20: Règle Th-U; fasc2 2.1.4 p3 | J20: Double fenêtre (2 x quelconque) | K20: 2.4 | L20: 0.22 | M20: 0.2
A21: 16 | B21: Silex | C21: 2 600 ≤ ρ ≤ 2 800 | D21: 2.6 | E21: 1000 | F21: 10000 | G21: 10000 | H21: 2.6 | I21: Règle Th-U; fasc2 2.1.5. p3 | J21: Porte non classée avec seuil et joint d'étanchéité | K21: 1.2 | L21: 0.23 | M21: 0.21
A22: 17 | B22: Meulières (1) | C22: 1 900 ≤ ρ ≤ 2 500 | D22: 1.8 | E22: 1000 | F22: 50 | G22: 40 | H22: 1.8 | I22: Règle Th-U; fasc2 2.1.5. p3 | J22: Porte non classée courante avec plots souples en feuillure | K22: 8 | L22: 0.24 | M22: 0.22
A23: 18 | B23: Meulières (2) | C23: 1 300 ≤ ρ < 1 900 | D23: 0.9 | E23: 1000 | F23: 30 | G23: 20 | H23: 0.9 | I23: Règle Th-U; fasc2 2.1.5. p3 | J23: Porte non classée courante sans plots souples en feuillure | K23: 20 | L23: 0.25 | M23: 0.225
A24: 19 | B24: Ponces naturelles | C24: ρ ≤ 400 | D24: 0.12 | E24: 1000 | F24: 8 | G24: 6 | H24: 0.12 | I24: Règle Th-U; fasc2 2.1.5. p3 | J24: Trappe de comble perdu avec joint d'étanchéité | K24: 0.8 | L24: 0.26 | M24: 0.23
A25: 20 | B25: Bétons de granulats courants siliceux, silico-calcaires et calcaires (NFP 18-540) / Béton plein (1) | C25: 2 300 < ρ ≤ 2 600 | D25: 2 | E25: 1000 | F25: 130 | G25: 80 | H25: 2 | I25: Règle Th-U; fasc2 2.2.1.1. p4 | J25: Trappe de comble perdu sans joint d'étanchéité | K25: 4 | L25: 0.27 | M25: 0.24
A26: 21 | B26: Bétons de granulats courants siliceux, silico-calcaires et calcaires (NFP 18-540) / Béton plein (2) | C26: 2 000 < ρ ≤ 2 300 | D26: 1.65 | E26: 1000 | F26: 120 | G26: 70 | H26: 1.65 | I26: Règle Th-U; fasc2 2.2.1.1. p4 | J26: Coffre de VR extérieur sans communication avec l'intérieur | K26: 0 | L26: 0.28 | M26: 0.25
A27: 22 | B27: Bétons de granulats courants siliceux, silico-calcaires et calcaires (NFP 18-540) / Béton caverneux (1) | C27: 1800 < ρ ≤ 2 000 | D27: 1.35 | E27: 1000 | F27: 100 | G27: 60 | H27: 1.35 | I27: Règle Th-U; fasc2 2.2.1.2. p4 | J27: Coffre de VR intérieur avec joints calfeutrés | K27: 0.2 | L27: 0.29 | M27: 0.255
A28: 23 | B28: Bétons de granulats courants siliceux, silico-calcaires et calcaires (NFP 18-540) / Béton caverneux (2) | C28: 1600 ≤ ρ ≤ 1 800 | D28: 1.15 | E28: 1000 | F28: 100 | G28: 60 | H28: 1.15 | I28: Règle Th-U; fasc2 2.2.1.2. p4 | J28: Coffre de VR intérieur d'autre type | K28: 1.5 | L28: 0.3 | M28: 0.26
A29: 24 | B29: Bétons de granulats courants siliceux, silico-calcaires et calcaires (NFP 18-540) / Béton plein armé avec V < 1% d'acier et ≤ 2 | C29: 2 300 < ρ ≤ 2 400 | D29: 2.3 | E29: 1000 | F29: 130 | G29: 80 | H29: 2.3 | I29: Règle Th-U; fasc2 2.2.1.3. p4 | L29: 0.325 | M29: 0.28
A30: 25 | B30: Bétons de granulats courants siliceux, silico-calcaires et calcaires (NFP 18-540) / Béton plein armé avec % d'acier > 2 | C30: ρ > 2 400 | D30: 2.5 | E30: 1000 | F30: 130 | G30: 80 | H30: 2.5 | I30: Règle Th-U; fasc2 2.2.1.3. p4 | L30: 0.35 | M30: 0.3
A31: 26 | B31: Bétons de granulats courants de laitiers de haut fourneaux (NFP 18-302) / Béton plein (1) | C31: 2 000 ≤ ρ ≤ 2 400 | D31: 1.4 | E31: 1000 | F31: 150 | G31: 120 | H31: 1.4 | I31: Règle Th-U; fasc2 2.2.2.1. p4 | J31: Type de ventilation | K31: Coef | L31: 0.4 | M31: 0.34
A32: 27 | B32: Bétons de granulats courants de laitiers de haut fourneaux (NFP 18-302) / Béton plein (2) | C32: 2 100 ≤ ρ ≤ 2 300 | D32: 0.8 | E32: 1000 | F32: 150 | G32: 120 | H32: 0.8 | I32: Règle Th-U; fasc2 2.2.2.1. p4 | J32: Ventilation non réglementaire | L32: 0.45 | M32: 0.37
A33: 28 | B33: Bétons de granulats courants de laitiers de haut fourneaux (NFP 18-302) / Béton caverneux | C33: 1 600 ≤ ρ ≤ 2 000 | D33: 0.7 | E33: 1000 | F33: 150 | G33: 120 | H33: 0.7 | I33: Règle Th-U; fasc2 2.2.2.2. p4 | J33: Ventilation naturelle | K33: 1.3 | L33: 0.5 | M33: 0.41
A34: 29 | B34: Bétons de granulats légers / Béton de pouzzolane ou de laitier expansé à structure caverneuse avec éléments fins de sable (1) | C34: 1 400 ≤ ρ ≤ 1 600 | D34: 0.52 | E34: 1000 | F34: 30 | G34: 20 | H34: 0.52 | I34: Règle Th-U; fasc2 2.2.3.1. p4 | J34: VMC double flux avec fourniture de chaleur | K34: 1.05 | L34: 0.55 | M34: 0.44
A35: 30 | B35: Bétons de granulats légers / Béton de pouzzolane ou de laitier expansé à structure caverneuse avec éléments fins de sable (2) | C35: 1 200 ≤ ρ ≤ 1 400 | D35: 0.44 | E35: 1000 | F35: 30 | G35: 20 | H35: 0.44 | I35: Règle Th-U; fasc2 2.2.3.1. p4 | J35: VMC double flux avec récupération de chaleur | K35: 1.05 | L35: 0.6 | M35: 0.47
A36: 31 | B36: Bétons de granulats légers / Béton de pouzzolane ou de laitier expansé à structure caverneuse sans éléments fins de sable | C36: 1 000 ≤ ρ ≤ 1 200 | D36: 0.35 | E36: 1000 | F36: 30 | G36: 20 | H36: 0.35 | I36: Règle Th-U; fasc2 2.2.3.1. p4 | J36: VMC double flux sans préchauffage | K36: 1.05 | L36: 0.65 | M36: 0.5
A37: 32 | B37: Béton de cendres volantes frittées | C37: 1 000 ≤ ρ ≤ 1 200 | D37: 0.35 | E37: 1000 | F37: 30 | G37: 20 | H37: 0.35 | I37: Règle Th-U; fasc2 2.2.3.2. p4 | J37: VMC simple flux | K37: 1.15 | L37: 0.7 | M37: 0.53
A38: 33 | B38: Béton de ponce naturelle | C38: 950 ≤ ρ ≤ 1 150 | D38: 0.46 | E38: 1000 | F38: 50 | G38: 40 | H38: 0.46 | I38: Règle Th-U; fasc2 2.2.3.3. p4 | L38: 0.75 | M38: 0.56
A39: 34 | B39: Béton d'argile expansée ou de schiste expansé /Béton de structure (ciment≥300kg/m3) avec sable de rivière, sans sable léger | C39: 1 600 < ρ ≤ 1 800 | D39: 1.05 | E39: 1000 | F39: 8 | G39: 6 | H39: 1.05 | I39: Règle Th-U; fasc2 2.2.3.4. p5 | L39: 0.8 | M39: 0.59
A40: 35 | B40: Béton d'argile expansée ou de schiste expansé/ Béton de structure (ciment≥300kg/m3) avec sable de rivière et sable léger | C40: 1 400 < ρ ≤ 1 600 | D40: 0.85 | E40: 1000 | F40: 8 | G40: 6 | H40: 0.85 | I40: Règle Th-U; fasc2 2.2.3.4. p5 | L40: 0.85 | M40: 0.62
A41: 36 | B41: Béton d'argile expansée ou de schiste expansé / Béton isolants porteurs avec sable léger et au + 10% de sable de rivière | C41: 1 200 < ρ ≤ 1 400 | D41: 0.7 | E41: 1000 | F41: 6 | G41: 4 | H41: 0.7 | I41: Règle Th-U; fasc2 2.2.3.4. p5 | L41: 0.9 | M41: 0.64
A42: 37 | B42: Béton d'argile expansée ou de schiste expansé / Béton isolants porteurs avec sable léger, sans sable de rivière | C42: 1 000 ≤ ρ ≤ 1 200 | D42: 0.46 | E42: 1000 | F42: 6 | G42: 4 | H42: 0.46 | I42: Règle Th-U; fasc2 2.2.3.4. p5 | L42: 0.95 | M42: 0.67
A43: 38 | B43: Béton d'argile expansée ou de schiste expansé / Bétons caverneux et semi-caverneux avec sable léger, sans sable de rivière | C43: 800 < ρ ≤ 1 000 | D43: 0.33 | E43: 1000 | F43: 6 | G43: 4 | H43: 0.33 | I43: Règle Th-U; fasc2 2.2.3.4. p5 | L43: 1 | M43: 0.69
A44: 39 | B44: Béton d'argile expansée ou de schiste expansé / Bétons caverneux et semi-caverneux sans sable et faible dosage ciment (1) | C44: 600 < ρ ≤ 800 | D44: 0.25 | E44: 1000 | F44: 6 | G44: 4 | H44: 0.25 | I44: Règle Th-U; fasc2 2.2.3.4. p5 | L44: 1.05 | M44: 0.72
A45: 40 | B45: Béton d'argile expansée ou de schiste expansé / Bétons caverneux et semi-caverneux sans sable et faible dosage ciment (2) | C45: ρ ≤ 600 | D45: 0.2 | E45: 1000 | F45: 6 | G45: 4 | H45: 0.2 | I45: Règle Th-U; fasc2 2.2.3.4. p5 | L45: 1.1 | M45: 0.74
A46: 41 | B46: Bétons de granulats très légers / Bétons de perlite ou de vermiculite grade 3 dosage 3/1 | C46: 600 < ρ ≤ 800 | D46: 0.31 | E46: 1000 | F46: 15 | G46: 10 | H46: 0.31 | I46: Règle Th-U; fasc2 2.2.4.1. p5 | L46: 1.15 | M46: 0.77
A47: 42 | B47: Bétons de granulats très légers / Bétons de perlite ou de vermiculite grade 3 dosage 6/1 | C47: 400 ≤ ρ ≤ 600 | D47: 0.24 | E47: 1000 | F47: 15 | G47: 10 | H47: 0.24 | I47: Règle Th-U; fasc2 2.2.4.1. p5 | L47: 1.2 | M47: 0.79
A48: 43 | B48: Bétons de granulats très légers / Plaques de béton de vermiculite fabriquées en usine | C48: 400 ≤ ρ ≤ 600 | D48: 0.19 | E48: 1000 | F48: 15 | G48: 10 | H48: 0.19 | I48: Règle Th-U; fasc2 2.2.4.2. p5 | L48: 1.25 | M48: 0.81
A49: 44 | B49: Bétons cellulaires traités à l'autoclave ρ nominal = 800 | C49: 765 < ρ ≤ 825 | D49: 0.29 | E49: 1000 | F49: 10 | G49: 6 | H49: 0.29 | I49: Règle Th-U; fasc2 2.2.5. p5 | L49: 1.3 | M49: 0.83
A50: 45 | B50: Bétons cellulaires traités à l'autoclave ρ nominal = 750 | C50: 715 < ρ ≤ 775 | D50: 0.27 | E50: 1000 | F50: 10 | G50: 6 | H50: 0.27 | I50: Règle Th-U; fasc2 2.2.5. p5 | L50: 1.35 | M50: 0.85
A51: 46 | B51: Bétons cellulaires traités à l'autoclave ρ nominal = 700 | C51: 665 < ρ ≤ 725 | D51: 0.25 | E51: 1000 | F51: 10 | G51: 6 | H51: 0.25 | I51: Règle Th-U; fasc2 2.2.5. p5 | L51: 1.4 | M51: 0.88
A52: 47 | B52: Bétons cellulaires traités à l'autoclave ρ nominal = 650 | C52: 615 < ρ ≤ 675 | D52: 0.23 | E52: 1000 | F52: 10 | G52: 6 | H52: 0.23 | I52: Règle Th-U; fasc2 2.2.5. p5 | L52: 1.45 | M52: 0.9
A53: 48 | B53: Bétons cellulaires traités à l'autoclave ρ nominal = 600 | C53: 565 < ρ ≤ 625 | D53: 0.21 | E53: 1000 | F53: 10 | G53: 6 | H53: 0.21 | I53: Règle Th-U; fasc2 2.2.5. p5 | L53: 1.5 | M53: 0.92
A54: 49 | B54: Bétons cellulaires traités à l'autoclave ρ nominal = 550 | C54: 515 < ρ ≤ 575 | D54: 0.19 | E54: 1000 | F54: 10 | G54: 6 | H54: 0.19 | I54: Règle Th-U; fasc2 2.2.5. p5 | L54: 1.6 | M54: 0.96
A55: 50 | B55: Bétons cellulaires traités à l'autoclave ρ nominal = 500 | C55: 465 < ρ ≤ 525 | D55: 0.175 | E55: 1000 | F55: 10 | G55: 6 | H55: 0.175 | I55: Règle Th-U; fasc2 2.2.5. p5 | L55: 1.7 | M55: 0.99
A56: 51 | B56: Bétons cellulaires traités à l'autoclave ρ nominal = 450 | C56: 415 < ρ ≤ 475 | D56: 0.16 | E56: 1000 | F56: 10 | G56: 6 | H56: 0.16 | I56: Règle Th-U; fasc2 2.2.5. p5 | L56: 1.75 | M56: 1.01
A57: 52 | B57: Bétons cellulaires traités à l'autoclave ρ nominal = 400 | C57: 365 < ρ ≤ 425 | D57: 0.145 | E57: 1000 | F57: 10 | G57: 6 | H57: 0.145 | I57: Règle Th-U; fasc2 2.2.5. p5 | L57: 1.8 | M57: 1.03
A58: 53 | B58: Bétons de bois / Béton de copeau de bois | C58: 450 ≤ ρ ≤ 650 | D58: 0.16 | E58: 1000 | F58: 15 | G58: 10 | H58: 0.16 | I58: Règle Th-U; fasc2 2.2.6.1. p5 | L58: 1.85 | M58: 1.045
A59: 54 | B59: Bétons de bois / Panneaux de laine de bois (fibbragglo) en béton de copeaux de bois (1) | C59: 100 ≤ ρ ≤ 200 | D59: 0.1 | E59: 1000 | H59: 0.1 | I59: Règle Th-U; fasc2 2.2.6.3. p5 | L59: 1.9 | M59: 1.06
A60: 55 | B60: Bétons de bois / Panneaux de laine de bois (fibbragglo) en béton de copeaux de bois (2) | C60: 200 ≤ ρ ≤ 600 | D60: 0.2 | E60: 1000 | H60: 0.2 | I60: Règle Th-U; fasc2 2.2.6.3. p5 | L60: 1.95 | M60: 1.08
A61: 56 | B61: Plâtres sans granulats "gaché serré " ou "très serrés" (1) | C61: 1 200 < ρ ≤1 500 | D61: 0.56 | E61: 1000 | F61: 10 | G61: 4 | H61: 0.56 | I61: Règle Th-U; fasc2 2.3.1. p6 | L61: 2 | M61: 1.1
A62: 57 | B62: Plâtres sans granulats "gaché serré " ou "très serrés" (2) | C62: 900 < ρ ≤ 1 200 | D62: 0.43 | E62: 1000 | F62: 10 | G62: 4 | H62: 0.43 | I62: Règle Th-U; fasc2 2.3.1. p6 | L62: 2.1 | M62: 1.13
A63: 58 | B63: Plâtres sans granulats "gaché serré " ou "très serrés" (3) | C63: 600 ≤ ρ ≤ 900 | D63: 0.3 | E63: 1000 | F63: 10 | G63: 4 | H63: 0.3 | I63: Règle Th-U; fasc2 2.3.1. p6 | L63: 2.2 | M63: 1.16
A64: 59 | B64: Plâtres sans granulats "gaché serré " ou "très serrés" (4) | C64: ρ ≤ 600 | D64: 0.18 | E64: 1000 | F64: 10 | G64: 4 | H64: 0.18 | I64: Règle Th-U; fasc2 2.3.1. p6 | L64: 2.3 | M64: 1.19
A65: 60 | B65: Plâtres sans granulats courant + enduit intérieur(PFC) ou plâtre gros construction (1) | C65: 1 000 ≤ ρ ≤ 1 300 | D65: 0.57 | E65: 1000 | F65: 10 | G65: 6 | H65: 0.57 | I65: Règle Th-U; fasc2 2.3.1. p6 | L65: 2.4 | M65: 1.22
A66: 61 | B66: Plâtres sans granulats courant + enduit intérieur(PFC) ou plâtre gros construction (2) | C66: ρ ≤ 1 000 | D66: 0.4 | E66: 1000 | F66: 10 | G66: 6 | H66: 0.4 | I66: Règle Th-U; fasc2 2.3.1. p6 | L66: 2.5 | M66: 1.25
A67: 62 | B67: Plâtres sans granulats + enduit intérieur à base de plâtre et sable | C67: ρ ≤ 1 600 | D67: 0.8 | E67: 1000 | F67: 10 | G67: 6 | H67: 0.8 | I67: Règle Th-U; fasc2 2.3.1. p6 | L67: 2.6 | M67: 1.28
A68: 63 | B68: Plâtres / Plaques de Plâtres sans granulats à parement carton ou préfabriqués lisses | C68: 750 ≤ ρ ≤ 900 | D68: 0.25 | E68: 1000 | F68: 10 | G68: 4 | H68: 0.25 | I68: Règle Th-U; fasc2 2.3.1. p6 | L68: 2.6 | M68: 1.32
A69: 64 | B69: Plâtres avec granulats légers ou fibres minérales / Plaques de Plâtres avec granulats à parement carton "feu"/ fibres minérales | C69: 800 ≤ ρ ≤ 1 000 | D69: 0.25 | E69: 1000 | F69: 10 | G69: 4 | H69: 0.25 | I69: Règle Th-U; fasc2 2.3.2. p6 | L69: 2.8 | M69: 1.36
A70: 65 | B70: Plâtres avec granulats légers ou fibres minérales / Plâtre d'enduit avec perlite tout venant ou vermiculite 1/1 | C70: 600 ≤ ρ ≤ 900 | D70: 0.3 | E70: 1000 | F70: 10 | G70: 6 | H70: 0.3 | I70: Règle Th-U; fasc2 2.3.2. p6 | L70: 2.9 | M70: 1.375
A71: 66 | B71: Plâtres avec granulats légers ou fibres minérales / Plâtre d'enduit avec perlite tout venant ou vermiculite 2/1 | C71: 500 ≤ ρ ≤ 600 | D71: 0.18 | E71: 1000 | F71: 10 | G71: 6 | H71: =OFFSET(B71,0,2,1,1) -> 0.18 | I71: Règle Th-U; fasc2 2.3.2. p6 | L71: 3 | M71: 1.39
A72: 67 | B72: Terre cuite ρ nominal = 2400 | C72: 2 300 < ρ ≤ 2 400 | D72: 1.04 | E72: 1000 | F72: 16 | G72: 10 | H72: 1.04 | I72: Règle Th-U; fasc2 2.4. p6 | L72: 3.1 | M72: 1.415
A73: 68 | B73: Terre cuite ρ nominal = 2300 | C73: 2 200 < ρ ≤ 2 300 | D73: 0.98 | E73: 1000 | F73: 16 | G73: 10 | H73: 0.98 | I73: Règle Th-U; fasc2 2.4. p6 | L73: 3.2 | M73: 1.44
A74: 69 | B74: Terre cuite ρ nominal = 2200 | C74: 2 100 < ρ ≤ 2 200 | D74: 0.92 | E74: 1000 | F74: 16 | G74: 10 | H74: 0.92 | I74: Règle Th-U; fasc2 2.4. p6 | L74: 3.3 | M74: 1.46
A75: 70 | B75: Terre cuite ρ nominal = 2100 | C75: 2 000 < ρ ≤ 2 100 | D75: 0.85 | E75: 1000 | F75: 16 | G75: 10 | H75: 0.85 | I75: Règle Th-U; fasc2 2.4. p6 | L75: 3.4 | M75: 1.48
A76: 71 | B76: Terre cuite ρ nominal = 2000 | C76: 1 900 < ρ ≤ 2 000 | D76: 0.79 | E76: 1000 | F76: 16 | G76: 10 | H76: 0.79 | I76: Règle Th-U; fasc2 2.4. p6 | L76: 3.5 | M76: 1.505
A77: 72 | B77: Terre cuite ρ nominal = 1900 | C77: 1 800 < ρ ≤ 1 900 | D77: 0.74 | E77: 1000 | F77: 16 | G77: 10 | H77: 0.74 | I77: Règle Th-U; fasc2 2.4. p6 | L77: 3.6 | M77: 1.53
A78: 73 | B78: Terre cuite ρ nominal = 1800 | C78: 1 700 < ρ ≤ 1 800 | D78: 0.69 | E78: 1000 | F78: 16 | G78: 10 | H78: 0.69 | I78: Règle Th-U; fasc2 2.4. p6 | L78: 3.7 | M78: 1.55
A79: 74 | B79: Terre cuite ρ nominal = 1700 | C79: 1 600 < ρ ≤ 1 700 | D79: 0.64 | E79: 1000 | F79: 16 | G79: 10 | H79: 0.64 | I79: Règle Th-U; fasc2 2.4. p6 | L79: 3.8 | M79: 1.57
A80: 75 | B80: Terre cuite ρ nominal = 1600 | C80: 1 500 < ρ ≤ 1 600 | D80: 0.6 | E80: 1000 | F80: 16 | G80: 10 | H80: 0.6 | I80: Règle Th-U; fasc2 2.4. p6 | L80: 3.9 | M80: 1.59
A81: 76 | B81: Terre cuite ρ nominal = 1500 | C81: 1 400 < ρ ≤ 1 500 | D81: 0.55 | E81: 1000 | F81: 16 | G81: 10 | H81: 0.55 | I81: Règle Th-U; fasc2 2.4. p6 | L81: 4 | M81: 1.61
A82: 77 | B82: Terre cuite ρ nominal = 1400 | C82: 1 300 < ρ ≤ 1 400 | D82: 0.5 | E82: 1000 | F82: 16 | G82: 10 | H82: 0.5 | I82: Règle Th-U; fasc2 2.4. p6 | L82: 4.1 | M82: 1.63
A83: 78 | B83: Terre cuite ρ nominal = 1300 | C83: 1 200 < ρ ≤ 1 300 | D83: 0.46 | E83: 1000 | F83: 16 | G83: 10 | H83: 0.46 | I83: Règle Th-U; fasc2 2.4. p6 | L83: 4.2 | M83: 1.65
A84: 79 | B84: Terre cuite ρ nominal = 1200 | C84: 1 100 < ρ ≤ 1 200 | D84: 0.41 | E84: 1000 | F84: 16 | G84: 10 | H84: 0.41 | I84: Règle Th-U; fasc2 2.4. p6 | L84: 4.3 | M84: 1.665
A85: 80 | B85: Terre cuite ρ nominal = 1100 | C85: 1 000 < ρ ≤ 1 100 | D85: 0.38 | E85: 1000 | F85: 16 | G85: 10 | H85: 0.38 | I85: Règle Th-U; fasc2 2.4. p6 | L85: 4.4 | M85: 1.68
A86: 81 | B86: Terre cuite ρ nominal = 1000 | C86: ρ ≤ 1000 | D86: 0.34 | E86: 1000 | F86: 16 | G86: 10 | H86: 0.34 | I86: Règle Th-U; fasc2 2.4. p6 | L86: 4.5 | M86: 1.7
A87: 82 | B87: Vegetaux / Bois / Feuillus très lourds ρn>1000kg/m3 | C87: ρ > 870 | D87: 0.29 | E87: 1600 | F87: 200 | G87: 50 | H87: 0.29 | I87: Règle Th-U; fasc2 2.5.1. p6 | L87: 4.6 | M87: 1.72
A88: 83 | B88: Vegetaux / Bois / Feuillus lourds 865< ρn≤1000kg/m3 | C88: 750 < ρ ≤ 870 | D88: 0.23 | E88: 1600 | F88: 200 | G88: 50 | H88: 0.23 | I88: Règle Th-U; fasc2 2.5.1. p6 | L88: 4.7 | M88: 1.74
A89: 84 | B89: Vegetaux / Bois / Feuillus mi-lourds 650<ρn≤865kg/m3 | C89: 565 < ρ ≤ 750 | D89: 0.18 | E89: 1600 | F89: 200 | G89: 50 | H89: 0.18 | I89: Règle Th-U; fasc2 2.5.1. p6 | L89: 4.8 | M89: 1.76
A90: 85 | B90: Vegetaux / Bois / Feuillus légers 500<ρn≤650kg/m3 | C90: 435 < ρ ≤ 565 | D90: 0.15 | E90: 1600 | F90: 200 | G90: 50 | H90: 0.15 | I90: Règle Th-U; fasc2 2.5.1. p6 | L90: 4.9 | M90: 1.775
A91: 86 | B91: Vegetaux / Bois / Feuillus très légers hors balsa 230<ρn≤500kg/m3 | C91: 200 < ρ ≤ 435 | D91: 0.13 | E91: 1600 | F91: 50 | G91: 20 | H91: 0.13 | I91: Règle Th-U; fasc2 2.5.1. p6 | L91: 5 | M91: 1.79
A92: 87 | B92: Vegetaux / Bois / Balsa ρn≤230kg/m3 | C92: ρ ≤ 200 | D92: 0.057 | E92: 1600 | F92: 50 | G92: 20 | H92: 0.057 | I92: Règle Th-U; fasc2 2.5.1. p6 | L92: 5.1 | M92: 1.81
A93: 88 | B93: Vegetaux / Bois / Résineux très lourds ρn>700kg/m3 | C93: ρ > 610 | D93: 0.23 | E93: 1600 | F93: 50 | G93: 20 | H93: 0.23 | I93: Règle Th-U; fasc2 2.5.1. p6 | L93: 5.2 | M93: 1.82
A94: 89 | B94: Vegetaux / Bois / Résineux lourds 600<ρn≤700kg/m3 | C94: 520 < ρ ≤ 610 | D94: 0.18 | E94: 1600 | F94: 50 | G94: 20 | H94: 0.18 | I94: Règle Th-U; fasc2 2.5.1. p6 | L94: 5.3 | M94: 1.84
A95: 90 | B95: Vegetaux / Bois / Résineux mi-lourds 500<ρn≤600kg/m3 | C95: 435 < ρ ≤ 520 | D95: 0.15 | E95: 1600 | F95: 50 | G95: 20 | H95: 0.15 | I95: Règle Th-U; fasc2 2.5.1. p6 | L95: 5.4 | M95: 1.86
A96: 91 | B96: Vegetaux / Bois / Résineux légers ρn≤500kg/m3 | C96: ρ ≤ 435 | D96: 0.13 | E96: 1600 | F96: 50 | G96: 20 | H96: 0.13 | I96: Règle Th-U; fasc2 2.5.1. p6 | L96: 5.5 | M96: 1.87
A97: 92 | B97: Panneaux à base de bois (NF EN 13986) / Panneaux contreplaqués NF EN 313-1 /313-2 ρ 850 à 1000kg/m3 | C97: 750 < ρ ≤ 900 | D97: 0.24 | E97: 1600 | F97: 250 | G97: 110 | H97: 0.24 | I97: Règle Th-U; fasc2 2.5.2.1. p7 | L97: 5.6 | M97: 1.89
A98: 93 | B98: Panneaux à base de bois (NF EN 13986) / Panneaux contreplaqués NF EN 313-1 /313-2 ρ 700 à 850kg/m3 | C98: 600 < ρ ≤ 750 | D98: 0.21 | E98: 1600 | F98: 250 | G98: 110 | H98: 0.21 | I98: Règle Th-U; fasc2 2.5.2.1. p7 | L98: 5.7 | M98: 1.9
A99: 94 | B99: Panneaux à base de bois (NF EN 13986) / Panneaux contreplaqués NF EN 313-1 /313-2 ρ 600 à 700kg/m3 | C99: 500 < ρ ≤ 600 | D99: 0.17 | E99: 1600 | F99: 220 | G99: 90 | H99: 0.17 | I99: Règle Th-U; fasc2 2.5.2.1. p7 | L99: 5.8 | M99: 1.92
A100: 95 | B100: Panneaux à base de bois (NF EN 13986) / Panneaux contreplaqués NF EN 313-1 /313-2 ρ 500 à 600kg/m3 | C100: 450 < ρ ≤ 500 | D100: 0.15 | E100: 1600 | F100: 200 | G100: 70 | H100: 0.15 | I100: Règle Th-U; fasc2 2.5.2.1. p7 | L100: 5.9 | M100: 1.93
A101: 96 | B101: Panneaux à base de bois (NF EN 13986) / Panneaux contreplaqués NF EN 313-1 /313-2 ρ 400 à 500kg/m3 | C101: 350 < ρ ≤ 450 | D101: 0.13 | E101: 1600 | F101: 200 | G101: 70 | H101: 0.13 | I101: Règle Th-U; fasc2 2.5.2.1. p7 | L101: 6 | M101: 1.95
A102: 97 | B102: Panneaux à base de bois (NF EN 13986) / Panneaux contreplaqués NF EN 313-1 /313-2 ρ 300 à 400kg/m3 | C102: 250 < ρ ≤ 350 | D102: 0.11 | E102: 1600 | F102: 200 | G102: 50 | H102: 0.11 | I102: Règle Th-U; fasc2 2.5.2.1. p7 | L102: 6.1 | M102: 1.96
A103: 98 | B103: Panneaux à base de bois (NF EN 13986) / Panneaux contreplaqués NF EN 313-1 /313-2 ρ<300kg/m3 | C103: ρ ≤ 250 | D103: 0.09 | E103: 1600 | F103: 200 | G103: 50 | H103: 0.09 | I103: Règle Th-U; fasc2 2.5.2.1. p7 | L103: 6.2 | M103: 1.97
A104: 99 | B104: Panneaux à lamelles longues et orientées (OSB) NF EN 300 | C104: ρ ≤ 650 | D104: 0.13 | E104: 1700 | F104: 50 | G104: 30 | H104: 0.13 | I104: Règle Th-U; fasc2 2.5.2.2. p7 | L104: 6.3 | M104: 1.985
A105: 100 | B105: Panneaux de particules liées au ciment NF EN 634-1 / NF EN 634-2 | C105: ρ ≤ 1 200 | D105: 0.23 | E105: 1500 | F105: 50 | G105: 30 | H105: 0.23 | I105: Règle Th-U; fasc2 2.5.2.3. p7 | L105: 6.4 | M105: 2
A106: 101 | B106: Panneaux de particules NF EN 309 ρn 700 à 900kg/m3 | C106: 640 < ρ ≤ 820 | D106: 0.18 | E106: 1700 | F106: 50 | G106: 20 | H106: 0.18 | I106: Règle Th-U; fasc2 2.5.2.4. p7 | L106: 6.5 | M106: 2.015
A107: 102 | B107: Panneaux de particules NF EN 309 ρn 500 à 700kg/m3 | C107: 450 < ρ ≤ 640 | D107: 0.15 | E107: 1700 | F107: 50 | G107: 20 | H107: 0.15 | I107: Règle Th-U; fasc2 2.5.2.4. p7 | L107: 6.6 | M107: 2.03
A108: 103 | B108: Panneaux de particules NF EN 309 ρn 300 à 500kg/m3 | C108: 270 < ρ ≤ 450 | D108: 0.13 | E108: 1700 | F108: 50 | G108: 20 | H108: 0.13 | I108: Règle Th-U; fasc2 2.5.2.4. p7 | L108: 6.7 | M108: 2.04
A109: 104 | B109: Panneaux de particules NF EN 309 ρn 200 à 300kg/m3 | C109: 180 < ρ ≤ 270 | D109: 0.1 | E109: 1700 | F109: 50 | G109: 20 | H109: 0.1 | I109: Règle Th-U; fasc2 2.5.2.4. p7 | L109: 6.8 | M109: 2.05
A110: 105 | B110: Panneaux de fibres NF EN 316 (1) | C110: 750 < ρ ≤ 1 000 | D110: 0.2 | E110: 1700 | F110: 50 | G110: 20 | H110: 0.2 | I110: Règle Th-U; fasc2 2.5.2.5. p7 | L110: 6.9 | M110: 2.065
A111: 106 | B111: Panneaux de fibres NF EN 316 (2) | C111: 550 < ρ ≤ 750 | D111: 0.18 | E111: 1700 | F111: 30 | G111: 20 | H111: 0.18 | I111: Règle Th-U; fasc2 2.5.2.5. p7 | L111: 7 | M111: 2.08
A112: 107 | B112: Panneaux de fibres NF EN 316 (3) | C112: 350 < ρ ≤ 550 | D112: 0.14 | E112: 1700 | F112: 20 | G112: 12 | H112: 0.14 | I112: Règle Th-U; fasc2 2.5.2.5. p7 | L112: 7.1 | M112: 2.095
A113: 108 | B113: Panneaux de fibres NF EN 316 (4) | C113: 200 < ρ ≤ 350 | D113: 0.1 | E113: 1700 | F113: 10 | G113: 6 | H113: 0.1 | I113: Règle Th-U; fasc2 2.5.2.5. p7 | L113: 7.2 | M113: 2.1
A114: 109 | B114: Panneaux de fibres NF EN 316 (5) | C114: ρ ≤ 200 | D114: 0.07 | E114: 1700 | F114: 5 | G114: 2 | H114: 0.07 | I114: Règle Th-U; fasc2 2.5.2.5. p7 | L114: 7.3 | M114: 2.115
A115: 110 | B115: Panneaux de laine de bois agglomérés NF EN 13168 (1) | C115: 450 ≤ ρ ≤ 550 | D115: 0.11 | E115: 1700 | F115: 20 | G115: 12 | H115: 0.11 | I115: Règle Th-U; fasc2 2.5.3. p7 | L115: 7.4 | M115: 2.13
A116: 111 | B116: Panneaux de laine de bois agglomérés NF EN 13168 (2) | C116: 350 ≤ ρ ≤ 450 | D116: 0.1 | E116: 1700 | F116: 10 | G116: 5 | H116: 0.1 | I116: Règle Th-U; fasc2 2.5.3. p7 | L116: 7.5 | M116: 2.14
A117: 112 | B117: Panneaux de laine de bois agglomérés NF EN 13168 (3) | C117: 250 ≤ ρ ≤ 350 | D117: 0.08 | E117: 1700 | F117: 10 | G117: 5 | H117: 0.08 | I117: Règle Th-U; fasc2 2.5.3. p7 | L117: 7.6 | M117: 2.15
A118: 113 | B118: Liège (comprimé, expansé pur, expansé aggloméré au brai… | C118: ρ ≤ 500 | D118: 0.1 | E118: 1560 | F118: 10 | G118: 5 | H118: 0.1 | I118: Règle Th-U; fasc2 2.5.4. p7 | L118: 7.7 | M118: 2.16
A119: 114 | B119: Paille comprimée | C119: 300 ≤ ρ ≤ 400 | D119: 0.12 | E119: 1400 | F119: 1 | G119: 1 | H119: 0.12 | I119: Règle Th-U; fasc2 2.5.5. p7 | L119: 7.8 | M119: 2.17
A120: 115 | B120: Matériaux isolants manufacturés / Laines minérales / Laines de roche (1) | C120: 15 ≤ ρ < 25 | D120: 0.05 | E120: 1030 | F120: 1 | G120: 1 | H120: 0.05 | I120: Règle Th-U; fasc2 2.6.2.1. p8 | L120: 7.9 | M120: 2.185
A121: 116 | B121: Matériaux isolants manufacturés / Laines minérales / Laines de roche (2) | C121: 25 ≤ ρ < 40 | D121: 0.044 | E121: 1030 | F121: 1 | G121: 1 | H121: 0.044 | I121: Règle Th-U; fasc2 2.6.2.1. p8 | L121: 8 | M121: 2.2
A122: 117 | B122: Matériaux isolants manufacturés / Laines minérales / Laines de roche (3) | C122: 40 ≤ ρ < 100 | D122: 0.042 | E122: 1030 | F122: 1 | G122: 1 | H122: 0.042 | I122: Règle Th-U; fasc2 2.6.2.1. p8 | L122: 8.1 | M122: 2.21
A123: 118 | B123: Matériaux isolants manufacturés / Laines minérales / Laines de roche (4) | C123: 100 ≤ ρ < 125 | D123: 0.044 | E123: 1030 | F123: 1 | G123: 1 | H123: 0.044 | I123: Règle Th-U; fasc2 2.6.2.1. p8 | L123: 8.2 | M123: 2.22
A124: 119 | B124: Matériaux isolants manufacturés / Laines minérales / Laines de roche (5) | C124: 125 ≤ ρ < 150 | D124: 0.046 | E124: 1030 | F124: 1 | G124: 1 | H124: 0.046 | I124: Règle Th-U; fasc2 2.6.2.1. p8 | L124: 8.3 | M124: 2.23
A125: 120 | B125: Matériaux isolants manufacturés / Laines minérales / Laines de roche (6) | C125: 150 ≤ ρ < 175 | D125: 0.047 | E125: 1030 | F125: 1 | G125: 1 | H125: 0.047 | I125: Règle Th-U; fasc2 2.6.2.1. p8 | L125: 8.4 | M125: 2.24
A126: 121 | B126: Matériaux isolants manufacturés / Laines minérales / Laines de roche (7) | C126: 175 ≤ ρ < 200 | D126: 0.048 | E126: 1030 | F126: 1 | G126: 1 | H126: 0.048 | I126: Règle Th-U; fasc2 2.6.2.1. p8 | L126: 8.5 | M126: 2.25
A127: 122 | B127: Matériaux isolants manufacturés / Laines minérales / Laines de verre (1) 7≤ρ<10kg/m3 | C127: 7≤ρ<10 | D127: 0.055 | E127: 1030 | F127: 1 | H127: 0.055 | I127: Règle Th-U; fasc2 2.6.2.2. p8 | L127: 8.6 | M127: 2.26
A128: 123 | B128: Matériaux isolants manufacturés / Laines minérales / Laines de verre (2) 10≤ρ<15kg/m3 | C128: 10≤ρ<15 | D128: 0.047 | E128: 1030 | F128: 1 | G128: 1 | H128: 0.047 | I128: Règle Th-U; fasc2 2.6.2.2. p8 | L128: 8.7 | M128: 2.27
A129: 124 | B129: Matériaux isolants manufacturés / Laines minérales / Laines de verre (3) 15≤ρ<20kg/m3 | C129: 15≤ρ<20 | D129: 0.044 | E129: 1030 | F129: 1 | G129: 1 | H129: 0.044 | I129: Règle Th-U; fasc2 2.6.2.2. p8 | L129: 8.8 | M129: 2.28
A130: 125 | B130: Matériaux isolants manufacturés / Laines minérales / Laines de verre (4) 20≤ρ<30kg/m3 | C130: 20≤ρ<30 | D130: 0.041 | E130: 1030 | F130: 1 | G130: 1 | H130: 0.041 | I130: Règle Th-U; fasc2 2.6.2.2. p8 | L130: 8.9 | M130: 2.29
A131: 126 | B131: Matériaux isolants manufacturés / Laines minérales / Laines de verre (5) 30≤ρ<40kg/m3 | C131: 30≤ρ<40 | D131: 0.039 | E131: 1030 | F131: 1 | G131: 1 | H131: 0.039 | I131: Règle Th-U; fasc2 2.6.2.2. p8 | L131: 9 | M131: 2.3
A132: 127 | B132: Matériaux isolants manufacturés / Laines minérales / Laines de verre (6) 40≤ρ<80kg/m3 | C132: 40≤ρ<80 | D132: 0.038 | E132: 1030 | F132: 1 | G132: 1 | H132: 0.038 | I132: Règle Th-U; fasc2 2.6.2.2. p8 | L132: 9.1 | M132: 2.31
A133: 128 | B133: Matériaux isolants manufacturés / Laines minérales / Laines de verre (7) 80≤ρ<120kg/m3 | C133: 80≤ρ<120 | D133: 0.039 | E133: 1030 | F133: 1 | G133: 1 | H133: 0.039 | I133: Règle Th-U; fasc2 2.6.2.2. p8 | L133: 9.2 | M133: 2.32
A134: 129 | B134: Matériaux isolants manufacturés / Laines minérales / Laines de verre (8) 120≤ρ<150kg/m3 | C134: 120≤ρ<150 | D134: 0.04 | E134: 1030 | F134: 1 | G134: 1 | H134: 0.04 | I134: Règle Th-U; fasc2 2.6.2.2. p8 | L134: 9.3 | M134: 2.33
A135: 130 | B135: Matériaux isolants manufacturés / Laines minérales en vrac obtenues par soufflage sur plancher de comble | C135: 10 à 60 | D135: 0.06 | E135: 1030 | F135: 1 | G135: 1 | H135: 0.06 | I135: Règle Th-U; fasc2 2.6.2.3. p8 | L135: 9.4 | M135: 2.34
A136: 131 | B136: Matériaux isolants manufacturés / Laines minérales obtenues par épandage manuel sur plancher de comble | C136: 10 à 60 | D136: 0.065 | E136: 1030 | F136: 1 | G136: 1 | H136: 0.065 | I136: Règle Th-U; fasc2 2.6.2.3. p8 | L136: 9.5 | M136: 2.35
A137: 132 | B137: Matériaux isolants manufacturés / Autres laines minérales | D137: 0.065 | E137: 1030 | F137: 1 | G137: 1 | H137: 0.065 | I137: Règle Th-U; fasc2 2.6.2.4. p8 | L137: 9.6 | M137: 2.36
A138: 133 | B138: Liège expansé pur conforme NF EN 13170(ICB) | C138: 100 ≤ ρ ≤ 150 | D138: 0.049 | E138: 1560 | F138: 10 | G138: 5 | H138: 0.049 | I138: Règle Th-U; fasc2 2.6.3. p8 | L138: 9.7 | M138: 2.37
A139: 134 | B139: Liège expansé aggloméré au brai ou aux résines synthétiques (1) | C139: 100 ≤ ρ < 150 | D139: 0.049 | E139: 1560 | F139: 10 | G139: 5 | H139: 0.049 | I139: Règle Th-U; fasc2 2.6.3. p8 | L139: 9.8 | M139: 2.38
A140: 135 | B140: Liège expansé aggloméré au brai ou aux résines synthétiques (2) | C140: 150 ≤ ρ ≤ 250 | D140: 0.055 | E140: 1560 | F140: 10 | G140: 5 | H140: 0.055 | I140: Règle Th-U; fasc2 2.6.3. p8 | L140: 9.9 | M140: 2.39
A141: 136 | B141: Polystyrène expansé plaques découpées ds blocs NF EN13163(EPS) (1) | C141: 7 ≤ ρ < 10 | D141: 0.056 | E141: 1450 | F141: 60 | G141: 60 | H141: 0.056 | I141: Règle Th-U; fasc2 2.6.4.1.1. p9 | L141: 10 | M141: 2.4
A142: 137 | B142: Polystyrène expansé plaques découpées ds blocs NF EN13163(EPS) (2) | C142: 10 ≤ ρ < 13 | D142: 0.05 | E142: 1450 | F142: 60 | G142: 60 | H142: 0.05 | I142: Règle Th-U; fasc2 2.6.4.1.1. p9 | L142: 10.25 | M142: 2.42
A143: 138 | B143: Polystyrène expansé plaques découpées ds blocs NF EN13163(EPS) (3) | C143: 13 ≤ ρ < 15 | D143: 0.047 | E143: 1450 | F143: 60 | G143: 60 | H143: =OFFSET(B143,0,2,1,1) -> 0.047 | I143: Règle Th-U; fasc2 2.6.4.1.1. p9 | L143: 10.5 | M143: 2.44
A144: 139 | B144: Polystyrène expansé plaques moulées en continu NF EN13163(EPS) (1) | C144: 15 ≤ ρ < 19 | D144: 0.044 | E144: 1450 | F144: 60 | G144: 60 | H144: 0.044 | I144: Règle Th-U; fasc2 2.6.4.1.1. p9 | L144: 10.75 | M144: 2.46
A145: 140 | B145: Polystyrène expansé plaques moulées en continu NF EN13163(EPS) (2) | C145: 19 ≤ ρ < 24 | D145: 0.042 | E145: 1450 | F145: 60 | G145: 60 | H145: 0.042 | I145: Règle Th-U; fasc2 2.6.4.1.1. p9 | L145: 11 | M145: 2.48
A146: 141 | B146: Polystyrène expansé plaques moulées en continu NF EN13163(EPS) (3) | C146: 24 ≤ ρ < 29 | D146: 0.04 | E146: 1450 | F146: 60 | G146: 60 | H146: 0.04 | I146: Règle Th-U; fasc2 2.6.4.1.1. p9 | L146: 11.25 | M146: 2.5
A147: 142 | B147: Autres plaques moulées à partir de billes (1) | C147: 29 ≤ ρ < 40 | D147: 0.039 | E147: 1450 | F147: 60 | G147: 60 | H147: 0.039 | I147: Règle Th-U; fasc2 2.6.4.1.1. p9 | L147: 11.5 | M147: 2.52
A148: 143 | B148: Autres plaques moulées à partir de billes (2) | C148: 40 ≤ ρ < 60 | D148: 0.038 | E148: 1450 | F148: 60 | G148: 60 | H148: 0.038 | I148: Règle Th-U; fasc2 2.6.4.1.1. p9 | L148: 11.75 | M148: 2.54
A149: 144 | B149: Polystyrène Plaques extrudées NF EN 13164 (XPS) / plaques sans gaz occlus autre que l'air + CO2 <60 mm | C149: 28 ≤ ρ ≤ 40 | D149: 0.041 | E149: 1450 | F149: 150 | G149: 150 | H149: 0.041 | I149: Règle Th-U; fasc2 2.6.4.1.2.1. p9 | L149: 12 | M149: 2.56
A150: 145 | B150: Polystyrène Plaques extrudées NF EN 13164 (XPS) / plaques sans gaz occlus autre que l'air + CO2 >60 mm | C150: 28 ≤ ρ ≤ 40 | D150: 0.046 | E150: 1450 | F150: 150 | G150: 150 | H150: 0.046 | I150: Règle Th-U; fasc2 2.6.4.1.2.1. p9 | L150: 12.25 | M150: 2.58
A151: 146 | B151: Polystyrène Plaques extrudées NF EN 13164 (XPS) /plaques expansées avec HCFC (142b/R22) | C151: 25 ≤ ρ ≤ 40 | D151: 0.035 | E151: 1450 | F151: 150 | G151: 150 | H151: 0.035 | I151: Règle Th-U; fasc2 2.6.4.1.2.2. p9 | L151: 12.5 | M151: 2.6
A152: 147 | B152: Polystyrène Plaques extrudées NF EN 13164 (XPS) / plaques expansées aux CFC sans peau de surface | C152: 25 ≤ ρ ≤ 40 | D152: 0.033 | E152: 1450 | F152: 150 | G152: 150 | H152: 0.033 | I152: Règle Th-U; fasc2 2.6.4.1.2.3. p9 | L152: 12.75 | M152: 2.62
A153: 148 | B153: Polystyrène Plaques extrudées NF EN 13164 (XPS) / plaques expansées aux CFC avec peau de surface | C153: 25 ≤ ρ ≤ 40 | D153: 0.031 | E153: 1450 | F153: 150 | G153: 150 | H153: 0.031 | I153: Règle Th-U; fasc2 2.6.4.1.2.3. p9 | L153: 13 | M153: 2.64
A154: 149 | B154: Polystyrène Plaques extrudées NF EN 13164 (XPS) / plaques expansées avec HFC 134a ou 152a e≤ 60 mm | C154: 25 < ρ ≤ 40 | D154: 0.039 | E154: 1450 | F154: 150 | G154: 150 | H154: 0.039 | I154: Règle Th-U; fasc2 2.6.4.1.2.4. p9 | L154: 13.25 | M154: 2.655
A155: 150 | B155: Polystyrène Plaques extrudées NF EN 13164 (XPS) / plaques expansées avec HFC 134a ou 152a e> 60 mm | C155: 25 < ρ ≤ 40 | D155: 0.044 | E155: 1450 | F155: 150 | G155: 150 | H155: 0.044 | I155: Règle Th-U; fasc2 2.6.4.1.2.4. p9 | L155: 13.5 | M155: 2.67
A156: 151 | B156: Polystyrène Plaques expansées autres que ci-dessus | C156: 20 ≤ ρ ≤ 60 | D156: 0.05 | E156: 1450 | F156: 150 | G156: 150 | H156: 0.05 | I156: Règle Th-U; fasc2 2.6.4.1.3. p9 | L156: 13.75 | M156: 2.685
A157: 152 | B157: mousse rigide de polychlorure de vinyle NFT 56-202 Q2 | C157: 25 ≤ ρ ≤ 35 | D157: 0.031 | H157: 0.031 | I157: Règle Th-U; fasc2 2.6.4.2. p9 | L157: 14 | M157: 2.71
A158: 153 | B158: mousse rigide de polychlorure de vinyle NFT 56-202 Q3 | C158: 35 ≤ ρ ≤ 48 | D158: 0.034 | H158: 0.034 | I158: Règle Th-U; fasc2 2.6.4.2. p9 | L158: 14.25 | M158: 2.725
A159: 154 | B159: mousse de polyurethanne ou de polyisocyanurate NF EN 13165 (PUR) / plaques moulées en continu et expansées avec HCFC(141b)et/ou pentanes / revêtements perméables à la diffusion | C159: 27 ≤ ρ ≤ 40 | D159: 0.035 | E159: 1400 | F159: 60 | G159: 60 | H159: 0.035 | I159: Règle Th-U; fasc2 2.6.4.3.1. p9 | L159: 14.5 | M159: 2.74
A160: 155 | B160: mousse de polyurethanne ou de polyisocyanurate NF EN 13165 (PUR) / plaques moulées en continu et expansées avec HCFC(141b)et/ou pentanes / alu>50μm ou reconnus étanches au gaz | C160: 27 ≤ ρ ≤ 40 | D160: 0.03 | E160: 1400 | F160: 60 | G160: 60 | H160: 0.03 | I160: Règle Th-U; fasc2 2.6.4.3.1. p9 | L160: 14.75 | M160: 2.755
A161: 156 | B161: plaques découpées ds blocs moulés et expansés avec HCFC(141b)et/ou pentanes | C161: 37 ≤ ρ ≤ 65 | D161: 0.041 | E161: 1400 | F161: 60 | G161: 60 | H161: 0.041 | I161: Règle Th-U; fasc2 2.6.4.3.2. p9 | L161: 15 | M161: 2.77
A162: 157 | B162: plaques moulées entre 2parements rigides et expansés avec HCFC(141b)et/ou pentanes | C162: 37 ≤ ρ ≤ 60 | D162: 0.032 | E162: 1400 | F162: 60 | G162: 60 | H162: 0.032 | I162: Règle Th-U; fasc2 2.6.4.3.3. p9 | L162: 15.25 | M162: 2.785
A163: 158 | B163: plaques moulées entre 2parements rigides et expansés sans gaz autre que l'air + CO2 | C163: 37 ≤ ρ ≤ 60 | D163: 0.035 | E163: 1400 | F163: 60 | G163: 60 | H163: 0.035 | I163: Règle Th-U; fasc2 2.6.4.3.3. p9 | L163: 15.5 | M163: 2.8
A164: 159 | B164: plaques moulées en continu projetés sur parement rigide + expansées HCFC et/ou pentanes | C164: 30 ≤ ρ ≤ 50 | D164: 0.035 | E164: 1400 | F164: 60 | G164: 60 | H164: 0.035 | I164: Règle Th-U; fasc2 2.6.4.3.4. p9 | L164: 15.75 | M164: 2.815
A165: 160 | B165: plaques moulées en continu ou découpées ds blocs moulés expansés sans gaz autre qu'air + C02 | C165: 15 ≤ ρ ≤ 30 | D165: 0.04 | E165: 1400 | F165: 60 | G165: 60 | H165: 0.04 | I165: Règle Th-U; fasc2 2.6.4.3.5. p10 | L165: 16 | M165: 2.83
A166: 161 | B166: Plaques NF T 56-203 découpées ds blocs moulés en discontinu avec CFC réf:AD | C166: 30 ≤ ρ < 35 | D166: 0.03 | E166: 1400 | F166: 60 | G166: 60 | H166: 0.03 | I166: Règle Th-U; fasc2 2.6.4.3.6. p10 | L166: 16.25 | M166: 2.845
A167: 162 | B167: Plaques NF T 56-203 découpées ds blocs moulés en discontinu avec CFC réf:BD | C167: 35 ≤ ρ < 40 | D167: 0.03 | E167: 1400 | F167: 60 | G167: 60 | H167: 0.03 | I167: Règle Th-U; fasc2 2.6.4.3.6. p10 | L167: 16.5 | M167: 2.86
A168: 163 | B168: Plaques NF T 56-203 découpées ds blocs moulés en discontinu avec CFC réf:CD | C168: 40 ≤ ρ < 50 | D168: 0.035 | E168: 1400 | F168: 60 | G168: 60 | H168: 0.035 | I168: Règle Th-U; fasc2 2.6.4.3.6. p10 | L168: 16.75 | M168: 2.875
A169: 164 | B169: Plaques NF T 56-203 découpées ds blocs moulés en discontinu avec CFC réf:DD | C169: 50 ≤ ρ < 60 | D169: 0.035 | E169: 1400 | F169: 60 | G169: 60 | H169: 0.035 | I169: Règle Th-U; fasc2 2.6.4.3.6. p10 | L169: 17 | M169: 2.89
A170: 165 | B170: Plaques NF T 56-203 découpées ds blocs moulés en discontinu avec CFC réf:ED | C170: 60 ≤ ρ < 70 | D170: 0.04 | E170: 1400 | F170: 60 | G170: 60 | H170: 0.04 | I170: Règle Th-U; fasc2 2.6.4.3.6. p10 | L170: 17.25 | M170: 2.905
A171: 166 | B171: Plaques NF T 56-203 découpées ds blocs moulés en discontinu avec CFC réf:FD | C171: 70 ≤ ρ < 100 | D171: 0.045 | E171: 1400 | F171: 60 | G171: 60 | H171: 0.045 | I171: Règle Th-U; fasc2 2.6.4.3.6. p10 | L171: 17.5 | M171: 2.92
A172: 167 | B172: Plaques NF T 56-203 découpées ds blocs moulés en discontinu avec CFC réf:AC | C172: 29 ≤ ρ < 31 | D172: 0.03 | E172: 1400 | F172: 60 | G172: 60 | H172: 0.03 | I172: Règle Th-U; fasc2 2.6.4.3.7. p10 | L172: 17.75 | M172: 2.93
A173: 168 | B173: Plaques NF T 56-203 découpées ds blocs moulés en discontinu avec CFC réf:BC | C173: 31 ≤ ρ < 33 | D173: 0.03 | E173: 1400 | F173: 60 | G173: 60 | H173: 0.03 | I173: Règle Th-U; fasc2 2.6.4.3.7. p10 | L173: 18 | M173: 2.94
A174: 169 | B174: Plaques NF T 56-203 découpées ds blocs moulés en discontinu avec CFC réf:CC | C174: 33 ≤ ρ < 37 | D174: 0.035 | E174: 1400 | F174: 60 | G174: 60 | H174: 0.035 | I174: Règle Th-U; fasc2 2.6.4.3.7. p10 | L174: 18.25 | M174: 2.955
A175: 170 | B175: Plaques NF T 56-203 découpées ds blocs moulés en discontinu avec CFC réf:DC | C175: 37 ≤ ρ < 46 | D175: 0.035 | E175: 1400 | F175: 60 | G175: 60 | H175: 0.035 | I175: Règle Th-U; fasc2 2.6.4.3.7. p10 | L175: 18.5 | M175: 2.97
A176: 171 | B176: Plaques NF T 56-203 découpées ds blocs moulés en discontinu avec CFC réf:EC | C176: 46 ≤ ρ < 56 | D176: 0.035 | E176: 1400 | F176: 60 | G176: 60 | H176: 0.035 | I176: Règle Th-U; fasc2 2.6.4.3.7. p10 | L176: 18.75 | M176: 2.985
A177: 172 | B177: Plaques NF T 56-203 découpées ds blocs moulés en discontinu avec CFC réf:FC | C177: 56 ≤ ρ < 66 | D177: 0.04 | E177: 1400 | F177: 60 | G177: 60 | H177: 0.04 | I177: Règle Th-U; fasc2 2.6.4.3.7. p10 | L177: 19 | M177: 3
A178: 173 | B178: Plaques NF T 56-203 découpées ds blocs moulés en discontinu avec CFC réf:GC | C178: 66 ≤ ρ < 75 | D178: 0.04 | E178: 1400 | F178: 60 | G178: 60 | H178: 0.04 | I178: Règle Th-U; fasc2 2.6.4.3.7. p10 | L178: 19.25 | M178: 3.01
A179: 174 | B179: Plaques NF T 56-203 découpées ds blocs moulés en discontinu avec CFC réf:HC | C179: 75 ≤ ρ < 100 | D179: 0.045 | E179: 1400 | F179: 60 | G179: 60 | H179: 0.045 | I179: Règle Th-U; fasc2 2.6.4.3.7. p10 | L179: 19.5 | M179: 3.02
A180: 175 | B180: Plaques moulées en continu avec CFC | C180: 27 ≤ ρ ≤ 35 | D180: 0.03 | E180: 1400 | F180: 60 | G180: 60 | H180: 0.03 | I180: Règle Th-U; fasc2 2.6.4.3.8. p10 | L180: 19.75 | M180: 3.03
A181: 176 | B181: Plaques expansées à base de polyuréthanne autres que ci-dessus | C181: 20 ≤ ρ < 60 | D181: 0.05 | E181: 1400 | F181: 60 | G181: 60 | H181: 0.05 | I181: Règle Th-U; fasc2 2.6.4.3.9. p10 | L181: 20 | M181: 3.04
A182: 177 | B182: Mousse phénolique rigide en continu expansés aux HCFC(141b) et ou LBL2/pentanes | C182: 30 ≤ ρ ≤ 45 | D182: 0.03 | E182: 1400 | F182: 50 | G182: 50 | H182: 0.03 | I182: Règle Th-U; fasc2 2.6.4.4.1. p10 | L182: 20.25 | M182: 3.055
A183: 178 | B183: Panneaux à base de mousse phénolique non cités ci-dessus | C183: 30 ≤ ρ ≤ 60 | D183: 0.05 | E183: 1400 | F183: 50 | G183: 50 | H183: 0.05 | I183: Règle Th-U; fasc2 2.6.4.4.2. p10 | L183: 20.5 | M183: 3.07
A184: 179 | B184: Autres matières plastiques alvéolaires fabriquées en usine | C184: 7 ≤ ρ ≤ 100 | D184: 0.065 | H184: 0.065 | I184: Règle Th-U; fasc2 2.6.4.5. p10 | L184: 20.75 | M184: 3.085
A185: 180 | B185: Plaques à base de perlite expansée et de fibres > à 80% (1) | C185: 220 ≤ ρ ≤ 275 | D185: 0.062 | E185: 900 | F185: 5 | G185: 5 | H185: 0.062 | I185: Règle Th-U; fasc2 2.6.5.1. p10 | L185: 21 | M185: 3.09
A186: 181 | B186: Plaques à base de perlite expansée et de fibres > à 80% (2) | C186: 180 ≤ ρ ≤ 220 | D186: 0.06 | E186: 900 | F186: 5 | G186: 5 | H186: 0.06 | I186: Règle Th-U; fasc2 2.6.5.1. p10 | L186: 21.25 | M186: 3.1
A187: 182 | B187: Plaques à base de perlite expansée et de fibres > à 80% (3) | C187: 150 ≤ ρ ≤ 180 | D187: 0.059 | E187: 900 | F187: 5 | G187: 5 | H187: 0.059 | I187: Règle Th-U; fasc2 2.6.5.1. p10 | L187: 21.5 | M187: 3.11
A188: 183 | B188: Plaque à base de perlite expansée + cellulose agglomérées non cités ci-dessus | C188: 140 ≤ ρ < 260 | D188: 0.064 | H188: 0.064 | I188: Règle Th-U; fasc2 2.6.5.2. p10 | L188: 21.75 | M188: 3.125
A189: 184 | B189: Plaques homogènes de verre cellulaires (>1978) (1) | C189: 110 ≤ ρ ≤ 140 | D189: 0.051 | E189: 1000 | H189: 0.051 | I189: Règle Th-U; fasc2 2.6.6. p10 | L189: 22 | M189: 3.14
A190: 185 | B190: Plaques homogènes de verre cellulaires (>1978) (2) | C190: 140 < ρ ≤ 180 | D190: 0.057 | E190: 1000 | H190: 0.057 | I190: Règle Th-U; fasc2 2.6.6. p10 | L190: 22.25 | M190: 3.15
A191: 186 | B191: Produits manufacturés à base de fibres végétales (laine de chanvre…) (1) | C191: 20 ≤ ρ < 40 | D191: 0.065 | E191: 1600 | F191: 1 | G191: 1 | H191: 0.065 | I191: Règle Th-U; fasc2 2.6.7. p10 | L191: 22.5 | M191: 3.16
A192: 187 | B192: Produits manufacturés à base de fibres végétales (laine de chanvre…) (2) | C192: 40 ≤ ρ < 60 | D192: 0.06 | E192: 1600 | F192: 1 | G192: 1 | H192: 0.06 | I192: Règle Th-U; fasc2 2.6.7. p10 | L192: 22.75 | M192: 3.17
A193: 188 | B193: Produits manufacturés à base de fibres végétales (laine de chanvre…) (3) | C193: 60 ≤ ρ < 200 | D193: 0.065 | E193: 1600 | F193: 1 | G193: 1 | H193: 0.065 | I193: Règle Th-U; fasc2 2.6.7. p10 | L193: 23 | M193: 3.18
A194: 189 | B194: Produits manufacturés à base de fibres animales (laine de mouton…) (1) | C194: 10 ≤ ρ < 20 | D194: 0.065 | E194: 1600 | F194: 1 | G194: 1 | H194: 0.065 | I194: Règle Th-U; fasc2 2.6.8. p10 | L194: 23.25 | M194: 3.19
A195: 190 | B195: Produits manufacturés à base de fibres animales (laine de mouton…) (2) | C195: 20 ≤ ρ < 50 | D195: 0.06 | E195: 1600 | F195: 1 | G195: 1 | H195: 0.06 | I195: Règle Th-U; fasc2 2.6.8. p10 | L195: 23.5 | M195: 3.2
A196: 191 | B196: Produits manufacturés à base de fibres animales (laine de mouton…) (3) | C196: 50 ≤ ρ < 100 | D196: 0.05 | H196: 0.05 | I196: Règle Th-U; fasc2 2.6.8. p10 | L196: 23.75 | M196: 3.21
A197: 192 | B197: Matières plastiques synthétiques compactes, mastics et produits d'étanchéité – naturel | C197: 910 | D197: 0.13 | E197: 1100 | F197: 10000 | G197: 10000 | H197: 0.13 | I197: Règle Th-U; fasc2 2.7.1. p11 | L197: 24 | M197: 3.22
A198: 193 | B198: – néoprène (polychloroprène) | C198: 1240 | D198: 0.23 | E198: 2140 | F198: 10000 | G198: 10000 | H198: 0.23 | I198: Règle Th-U; fasc2 2.7.1. p11 | L198: 24.25 | M198: 3.23
A199: 194 | B199: – butyle (iso butène), plein/coulé à chaud | C199: 1200 | D199: 0.24 | E199: 1400 | F199: 200000 | G199: 200000 | H199: 0.24 | I199: Règle Th-U; fasc2 2.7.1. p11 | L199: 24.5 | M199: 3.24
A200: 195 | B200: – caoutchouc mousse | C200: 60-80 | D200: 0.06 | E200: 1500 | F200: 7000 | G200: 7000 | H200: 0.06 | I200: Règle Th-U; fasc2 2.7.1. p11 | L200: 24.75 | M200: 3.25
... 181 more rows

Sheet local 1
B1: =RIGHT(CELL("nomfichier",B1),LEN(CELL("nomfichier",B1))-FIND("]",CELL("nomfichier",B1))) -> 
B2: Date : | C2: =TODAY() -> 2013-01-28
B3: Affaire :
B4: Localité :
B5: Hauteur du batiment (en m) : | G5: Température ext. de base (°C) : | H5: -9 | I5: Notes:
B6: Dénivellation yo (en m): | G6: Région (H1,H2,H3) :
B7: Hauteur au sol (en m) :
G8: Température intérieure (°C) : | H8: 19
B9: Local : | C9: =RIGHT(CELL("nomfichier",B1),LEN(CELL("nomfichier",B1))-FIND("]",CELL("nomfichier",B1))) ->  | D9: Surface (en m²) : | F9: 50 | G9: Renouvellement d'air : | H9: n en vol/h | I9: 2 | J9: tri =
B10: N°: | D10: Hauteur (en m) : | F10: 2.5 | H10: n.V en m3/h | I10: =$I$9*$F$11 -> 250 | J10: tai =
B11: Type chauffage (C/R) | D11: Volume (en m3) : | F11: =F9*F10 -> 125
B14: Pertes statiques :
B16: Désignation | F16: Nbre | G16: Dimensions | I16: Surface/Long. | K16: U ou ψ (en W/m².K) | L16: C2 | M16: Δt(°C ou K) | N16: bu | O16: Pertes | P16: Références
B17: Repère paroi | C17: Indication | D17: te (en °C) | E17: Or. | G17: Largeur (en m) | H17: Haut/Long (en m) | I17: Brute (m²/m) | J17: Nette (m²/m)
B18: ME | D18: =$H$5 -> -9 | F18: 1 | G18: 35 | H18: 2.5 | I18: =$G18*$H18*$F18 -> 87.5 | J18: =IF(OR(B19="FE",B19="PO"),IF(OR(B20="FE",B20="PO"),IF(OR(B21="FE",B21="PO"),I18-I19-I20-I21,I18-I19-I20),I18-I19),I18)+IF(AND(OR(B18="FE",B18="PO"),OR(B19="FE",B19="PO")),+I19)+IF(AND(OR(B18="FE",B18="PO"),OR(B19="FE",B19="PO"),OR(B20="FE",B20="PO")),+I20) -> 82.4 | K18: 0.35 | L18: 1 | M18: =$H$8-$H$5 -> 28 | N18: 1 | O18: =$N18*$M18*$K18*$J18 -> 807.52
B19: FE | D19: =$H$5 -> -9 | F19: 2 | G19: 1.5 | H19: 1.4 | I19: =$G19*$H19*$F19 -> 4.2 | J19: =IF(OR(B20="FE",B20="PO"),IF(OR(B21="FE",B21="PO"),IF(OR(B22="FE",B22="PO"),I19-I20-I21-I22,I19-I20-I21),I19-I20),I19)+IF(AND(OR(B19="FE",B19="PO"),OR(B20="FE",B20="PO")),+I20)+IF(AND(OR(B19="FE",B19="PO"),OR(B20="FE",B20="PO"),OR(B21="FE",B21="PO")),+I21) -> 4.2 | K19: 2.7 | L19: 1 | M19: =$H$8-$H$5 -> 28 | N19: 1 | O19: =$N19*$M19*$K19*$J19 -> 317.52
B20: PO | D20: =$H$5 -> -9 | F20: 1 | G20: 0.9 | H20: 1 | I20: =$G20*$H20*$F20 -> 0.9 | J20: 0.9 | K20: 1.8 | L20: 1 | M20: =$H$8-$H$5 -> 28 | N20: 1 | O20: =$N20*$M20*$K20*$J20 -> 45.36
B21: PT | D21: =$H$5 -> -9 | F21: 1 | G21: 1 | H21: 2.5 | I21: =$G21*$H21*$F21 -> 2.5 | J21: 2.5 | K21: 0.07 | L21: 1 | M21: 28 | N21: 1 | O21: 4.9
B22: PT | D22: -9 | F22: 1 | G22: 1 | H22: 2.5 | I22: 2.5 | J22: 2.5 | K22: 0.02 | L22: 1 | M22: 28 | N22: 1 | O22: 1.4
D23: -9 | I23: 0 | J23: 0 | L23: 1 | M23: 28 | N23: 1 | O23: 0
D24: -9 | I24: 0 | J24: 0 | L24: 1 | M24: 28 | N24: 1 | O24: 0
D25: -9 | I25: 0 | J25: 0 | L25: 1 | M25: 28 | N25: 1 | O25: 0
D26: -9 | I26: 0 | J26: 0 | L26: 1 | M26: 28 | N26: 1 | O26: 0
D27: -9 | I27: 0 | J27: 0 | L27: 1 | M27: 28 | N27: 1 | O27: 0
D28: -9 | I28: 0 | J28: 0 | L28: 1 | M28: 28 | N28: 1 | O28: 0
D29: -9 | I29: 0 | J29: 0 | L29: 1 | M29: 28 | N29: 1 | O29: 0
D30: -9 | I30: 0 | J30: 0 | L30: 1 | M30: 28 | N30: 1 | O30: 0
D31: -9 | I31: 0 | J31: 0 | L31: 1 | M31: 28 | N31: 1 | O31: 0
D32: -9 | I32: 0 | J32: 0 | L32: 1 | M32: 28 | N32: 1 | O32: 0
D33: -9 | I33: 0 | J33: 0 | L33: 1 | M33: 28 | N33: 1 | O33: 0
D34: -9 | I34: 0 | J34: 0 | L34: 1 | M34: 28 | N34: 1 | O34: 0
D35: -9 | I35: 0 | J35: 0 | L35: 1 | M35: 28 | N35: 1 | O35: 0
D36: -9 | I36: 0 | J36: 0 | L36: 1 | M36: 28 | N36: 1 | O36: 0
D37: -9 | I37: 0 | J37: 0 | L37: 1 | M37: 28 | N37: 1 | O37: 0
D38: -9 | I38: 0 | J38: 0 | L38: 1 | M38: 28 | N38: 1 | O38: 0
D39: -9 | I39: 0 | J39: 0 | L39: 1 | M39: 28 | N39: 1 | O39: 0
B40: légende: ME = mur ; FE = fenêtre ; PO = porte ; PLH = plancher-haut ; PLB = plancher-bas ; PT = Pont Thermique
H41: Total déperditions [statiques et aérauliques] (en W) | K41: Total pertes parois (en W) : | M41: =SUM(O18:O39) -> 1176.7
E42: Σ∏ | F42: =J64+'local 2'!J64+'local 3'!J64+'local 4'!J64+'local 5'!J64+#REF!+#REF!+#REF!+#REF!+#REF! ->  | H42: local | I42: =RIGHT(CELL("nomfichier",B1),LEN(CELL("nomfichier",B1))-FIND("]",CELL("nomfichier",B1))) ->  | J42: =$M$43+$M$68 -> 1176.7 | K42: k (coef pont thermiques) en% | M42: 0
K43: Total pertes parois+ponts (en W) : | M43: =((M41*M42)/100)+M41 -> 1176.7
B44: pertes aérauliques :
A46: Types d'ouvertures | B46: Désignation | F46: Dimensions | H46: Coefficients | I46: Surface ou linéaire | J46: Perméabilité | K46: U (en W/m².K) | L46: Débit (m3/h) | M46: Δt(°C ou K) | N46: b | O46: Pertes | P46: Références
B47: Repère type | C47: Te(°C) | D47: 0r. | E47: Nbre | F47: Largeur (en m) | G47: Haut/long (en m)
A48: Entrée d'air module 15 | C48: =$H$5 -> -9 | E48: 1 | H48: =IFERROR(VLOOKUP(designation1,source1,2,FALSE),0) -> 3.4 | I48: =IFERROR(IF(EXACT(LEFT($A48,6),"Coffre"),$G48,$F48*$G48),"/") -> 0 | J48: =IFERROR(IF(EXACT(LEFT($A48,6),"Entrée"),$E48*$H48,$I48*$H48*$E48),"/") -> 3.4 | K48: 1 | M48: =$H$8-$C48 -> 28 | N48: 1 | O48: =IFERROR(IF($J48>0,$K48*$M48*$N48*$M$66*($J48/$F$42),$I$10*$K48*$M48),0) -> 0
A49: Non renseigné | C49: =$H$5 -> -9 | E49: 1 | H49: =IFERROR(VLOOKUP(designation2,source1,2,FALSE),0) -> 0 | I49: =IFERROR(IF(EXACT(LEFT($A49,6),"Coffre"),$G49,$F49*$G49),"/") -> 0 | J49: =IFERROR(IF(EXACT(LEFT($A49,6),"Entrée"),$E49*$H49,$I49*$H49*$E49),"/") -> 0 | M49: =$H$8-$C49 -> 28 | N49: 1 | O49: =IFERROR(IF($J49>0,$K49*$M49*$N49*$M$66*($J49/$F$42),$I$10*$K49*$M49),0) -> 0
A50: Non renseigné | C50: -9 | E50: 1 | H50: =IFERROR(VLOOKUP(designation3,source1,2,FALSE),0) -> 0 | I50: 0 | J50: =IFERROR(IF(EXACT(LEFT($A50,6),"Entrée"),$E50*$H50,$I50*$H50*$E50),"/") -> 0 | M50: 28 | N50: 1 | O50: 0
A51: Non renseigné | C51: -9 | E51: 1 | H51: =IFERROR(VLOOKUP(designation4,source1,2,FALSE),0) -> 0 | I51: 0 | J51: 0 | M51: 28 | N51: 1 | O51: 0
A52: Non renseigné | C52: -9 | E52: 1 | H52: =IFERROR(VLOOKUP(designation5,source1,2,FALSE),0) -> 0 | I52: 0 | J52: 0 | M52: 28 | N52: 1 | O52: 0
A53: Non renseigné | C53: -9 | E53: 1 | H53: =IFERROR(VLOOKUP(designation6,source1,2,FALSE),0) -> 0 | I53: 0 | J53: 0 | M53: 28 | N53: 1 | O53: 0
A54: Non renseigné | C54: -9 | E54: 1 | H54: =IFERROR(VLOOKUP(designation7,source1,2,FALSE),0) -> 0 | I54: 0 | J54: 0 | M54: 28 | N54: 1 | O54: 0
A55: Non renseigné | C55: -9 | E55: 1 | H55: =IFERROR(VLOOKUP(designation8,source1,2,FALSE),0) -> 0 | I55: 0 | J55: 0 | M55: 28 | N55: 1 | O55: 0
A56: Non renseigné | C56: -9 | E56: 1 | H56: =IFERROR(VLOOKUP(designation9,source1,2,FALSE),0) -> 0 | I56: 0 | J56: 0 | M56: 28 | N56: 1 | O56: 0
A57: Non renseigné | C57: -9 | E57: 1 | H57: =IFERROR(VLOOKUP(designation10,source1,2,FALSE),0) -> 0 | I57: 0 | J57: 0 | M57: 28 | N57: 1 | O57: 0
A58: Non renseigné | C58: -9 | E58: 1 | H58: =IFERROR(VLOOKUP(designation11,source1,2,FALSE),0) -> 0 | I58: 0 | J58: 0 | M58: 28 | N58: 1 | O58: 0
A59: Non renseigné | C59: -9 | E59: 1 | H59: =IFERROR(VLOOKUP(designation12,source1,2,FALSE),0) -> 0 | I59: 0 | J59: 0 | M59: 28 | N59: 1 | O59: 0
A60: Non renseigné | C60: -9 | E60: 1 | H60: =IFERROR(VLOOKUP(designation13,source1,2,FALSE),0) -> 0 | I60: 0 | J60: 0 | M60: 28 | N60: 1 | O60: 0
A61: Non renseigné | C61: -9 | E61: 1 | H61: =IFERROR(VLOOKUP(designation14,source1,2,FALSE),0) -> 0 | I61: 0 | J61: 0 | M61: 28 | N61: 1 | O61: 0
A62: Non renseigné | C62: -9 | E62: 1 | H62: =IFERROR(VLOOKUP(designation15,source1,2,FALSE),0) -> 0 | I62: 0 | J62: 0 | M62: 28 | N62: 1 | O62: 0
A63: Non renseigné | C63: -9 | E63: 1 | H63: =IFERROR(VLOOKUP(designation16,source1,2,FALSE),0) -> 0 | I63: 0 | J63: 0 | M63: 28 | N63: 1 | O63: 0
I64: Σ | J64: =SUM(J48:J63) -> 3.4
K65: Débit réglementaire (en m3/h) : | M65: 130
I66: Ventilation naturelle | K66: Coefficient : | L66: =IFERROR(VLOOKUP(designation17,typeventil,2,FALSE),0) -> 1.3 | M66: =$M$65*$L$66 -> 169
K67: n.V - Débit rég. (en m3/h) | M67: =I10-M65 -> 120
K68: Total pertes aérauliques (en W) : | M68: =SUM(O48:O63) -> 0

Sheet local 2
B1: =RIGHT(CELL("nomfichier",B1),LEN(CELL("nomfichier",B1))-FIND("]",CELL("nomfichier",B1))) -> 
B2: Date : | C2: =TODAY() -> 2013-01-28
B3: Affaire :
B4: Localité :
B5: Hauteur du batiment (en m) : | G5: Température ext. de base (°C) : | H5: -9 | I5: Notes:
B6: Dénivellation yo (en m): | G6: Région (H1,H2,H3) :
B7: Hauteur au sol (en m) :
G8: Température intérieure (°C) : | H8: 19
B9: Local : | C9: =RIGHT(CELL("nomfichier",B1),LEN(CELL("nomfichier",B1))-FIND("]",CELL("nomfichier",B1))) ->  | D9: Surface (en m²) : | F9: 15 | G9: Renouvellement d'air : | H9: n en vol/h | I9: 2 | J9: tri =
B10: N°: | D10: Hauteur (en m) : | F10: 2.5 | H10: n.V en m3/h | I10: =$I$9*$F$11 -> 75 | J10: tai =
B11: Type chauffage (C/R) | D11: Volume (en m3) : | F11: =F9*F10 -> 37.5
B14: Pertes statiques :
B16: Désignation | F16: Nbre | G16: Dimensions | I16: Surface/Long. | K16: U ou ψ (en W/m².K) | L16: C2 | M16: Δt(°C ou K) | N16: bu | O16: Pertes | P16: Références
B17: Repère paroi | C17: Indication | D17: te (en °C) | E17: Or. | G17: Largeur (en m) | H17: Haut/Long (en m) | I17: Brute (m²/m) | J17: Nette (m²/m)
B18: ME | D18: =$H$5 -> -9 | F18: 1 | G18: 15 | H18: 2.5 | I18: =$G18*$H18*$F18 -> 37.5 | J18: =IF(OR(B19="FE",B19="PO"),IF(OR(B20="FE",B20="PO"),IF(OR(B21="FE",B21="PO"),I18-I19-I20-I21,I18-I19-I20),I18-I19),I18)+IF(AND(OR(B18="FE",B18="PO"),OR(B19="FE",B19="PO")),+I19)+IF(AND(OR(B18="FE",B18="PO"),OR(B19="FE",B19="PO"),OR(B20="FE",B20="PO")),+I20) -> 37.5 | K18: 0.35 | L18: 1 | M18: =$H$8-$H$5 -> 28 | N18: 1 | O18: =$N18*$M18*$K18*$J18 -> 367.5
B19: PT | D19: =$H$5 -> -9 | F19: 1 | G19: 2.5 | H19: 1 | I19: =$G19*$H19*$F19 -> 2.5 | J19: =IF(OR(B20="FE",B20="PO"),IF(OR(B21="FE",B21="PO"),IF(OR(B22="FE",B22="PO"),I19-I20-I21-I22,I19-I20-I21),I19-I20),I19)+IF(AND(OR(B19="FE",B19="PO"),OR(B20="FE",B20="PO")),+I20)+IF(AND(OR(B19="FE",B19="PO"),OR(B20="FE",B20="PO"),OR(B21="FE",B21="PO")),+I21) -> 2.5 | K19: 0.07 | L19: 1 | M19: =$H$8-$H$5 -> 28 | N19: 1 | O19: =$N19*$M19*$K19*$J19 -> 4.9
B20: ME | D20: =$H$5 -> -9 | F20: 1 | G20: 17 | H20: 2.5 | I20: =$G20*$H20*$F20 -> 42.5 | J20: 38.125 | K20: 0.35 | L20: 1 | M20: =$H$8-$H$5 -> 28 | N20: 1 | O20: =$N20*$M20*$K20*$J20 -> 373.625
B21: FE | D21: =$H$5 -> -9 | F21: 1 | G21: 1.75 | H21: 2.5 | I21: =$G21*$H21*$F21 -> 4.375 | J21: 4.375 | K21: 2.8 | L21: 1 | M21: 28 | N21: 1 | O21: 343
D22: -9 | I22: 0 | J22: 0 | L22: 1 | M22: 28 | N22: 1 | O22: 0
D23: -9 | I23: 0 | J23: 0 | L23: 1 | M23: 28 | N23: 1 | O23: 0
D24: -9 | I24: 0 | J24: 0 | L24: 1 | M24: 28 | N24: 1 | O24: 0
D25: -9 | I25: 0 | J25: 0 | L25: 1 | M25: 28 | N25: 1 | O25: 0
D26: -9 | I26: 0 | J26: 0 | L26: 1 | M26: 28 | N26: 1 | O26: 0
D27: -9 | I27: 0 | J27: 0 | L27: 1 | M27: 28 | N27: 1 | O27: 0
D28: -9 | I28: 0 | J28: 0 | L28: 1 | M28: 28 | N28: 1 | O28: 0
D29: -9 | I29: 0 | J29: 0 | L29: 1 | M29: 28 | N29: 1 | O29: 0
D30: -9 | I30: 0 | J30: 0 | L30: 1 | M30: 28 | N30: 1 | O30: 0
D31: -9 | I31: 0 | J31: 0 | L31: 1 | M31: 28 | N31: 1 | O31: 0
D32: -9 | I32: 0 | J32: 0 | L32: 1 | M32: 28 | N32: 1 | O32: 0
D33: -9 | I33: 0 | J33: 0 | L33: 1 | M33: 28 | N33: 1 | O33: 0
D34: -9 | I34: 0 | J34: 0 | L34: 1 | M34: 28 | N34: 1 | O34: 0
D35: -9 | I35: 0 | J35: 0 | L35: 1 | M35: 28 | N35: 1 | O35: 0
D36: -9 | I36: 0 | J36: 0 | L36: 1 | M36: 28 | N36: 1 | O36: 0
D37: -9 | I37: 0 | J37: 0 | L37: 1 | M37: 28 | N37: 1 | O37: 0
D38: -9 | I38: 0 | J38: 0 | L38: 1 | M38: 28 | N38: 1 | O38: 0
D39: -9 | I39: 0 | J39: 0 | L39: 1 | M39: 28 | N39: 1 | O39: 0
B40: légende: ME = mur ; FE = fenêtre ; PO = porte ; PLH = plancher-haut ; PLB = plancher-bas ; PT = Pont Thermique
H41: Total déperditions [statiques et aérauliques] (en W) | K41: Total pertes parois (en W) : | M41: =SUM(O18:O39) -> 1089.025
H42: local | I42: =RIGHT(CELL("nomfichier",B1),LEN(CELL("nomfichier",B1))-FIND("]",CELL("nomfichier",B1))) ->  | J42: =$M$43+$M$68 -> 1089.025 | K42: k (coef pont thermiques) en% | M42: 0
K43: Total pertes parois+ponts (en W) : | M43: =((M41*M42)/100)+M41 -> 1089.025
B44: pertes aérauliques :
A46: Types d'ouvertures | B46: Désignation | F46: Dimensions | H46: Coefficients | I46: Surface ou linéaire | J46: Perméabilité | K46: U (en W/m².K) | L46: Débit (m3/h) | M46: Δt(°C ou K) | N46: b | O46: Pertes | P46: Références
B47: Repère type | C47: Te(°C) | D47: 0r. | E47: Nbre | F47: Largeur (en m) | G47: Haut/long (en m)
A48: Entrée d'air module 22 | C48: =$H$5 -> -9 | E48: 1 | H48: =IFERROR(VLOOKUP(designation1,source1,2,FALSE),0) -> 5 | I48: =IFERROR(IF(EXACT(LEFT($A48,6),"Coffre"),$G48,$F48*$G48),"/") -> 0 | J48: =IFERROR(IF(EXACT(LEFT($A48,6),"Entrée"),$E48*$H48,$I48*$H48*$E48),"/") -> 5 | K48: 1 | M48: =$H$8-$C48 -> 28 | N48: 1 | O48: =IFERROR(IF($J48>0,$K48*$M48*$N48*$M$66*($J48/'local 1'!$F$42),$I$10*$K48*$M48),0) -> 0
A49: Non renseigné | C49: =$H$5 -> -9 | E49: 1 | H49: =IFERROR(VLOOKUP(designation2,source1,2,FALSE),0) -> 0 | I49: =IFERROR(IF(EXACT(LEFT($A49,6),"Coffre"),$G49,$F49*$G49),"/") -> 0 | J49: =IFERROR(IF(EXACT(LEFT($A49,6),"Entrée"),$E49*$H49,$I49*$H49*$E49),"/") -> 0 | M49: =$H$8-$C49 -> 28 | N49: 1 | O49: =IFERROR(IF($J49>0,$K49*$M49*$N49*$M$66*($J49/'local 1'!$F$42),$I$10*$K49*$M49),0) -> 0
A50: Non renseigné | C50: -9 | E50: 1 | H50: =IFERROR(VLOOKUP(designation3,source1,2,FALSE),0) -> 0 | I50: 0 | J50: 0 | M50: 28 | N50: 1 | O50: =IFERROR(IF($J50>0,$K50*$M50*$N50*$M$66*($J50/'local 1'!$F$42),$I$10*$K50*$M50),0) -> 0
A51: Non renseigné | C51: -9 | E51: 1 | H51: =IFERROR(VLOOKUP(designation4,source1,2,FALSE),0) -> 0 | I51: 0 | J51: 0 | M51: 28 | N51: 1 | O51: =IFERROR(IF($J51>0,$K51*$M51*$N51*$M$66*($J51/'local 1'!$F$42),$I$10*$K51*$M51),0) -> 0
A52: Non renseigné | C52: -9 | E52: 1 | H52: =IFERROR(VLOOKUP(designation5,source1,2,FALSE),0) -> 0 | I52: 0 | J52: 0 | M52: 28 | N52: 1 | O52: =IFERROR(IF($J52>0,$K52*$M52*$N52*$M$66*($J52/'local 1'!$F$42),$I$10*$K52*$M52),0) -> 0
A53: Non renseigné | C53: -9 | E53: 1 | H53: =IFERROR(VLOOKUP(designation6,source1,2,FALSE),0) -> 0 | I53: 0 | J53: 0 | M53: 28 | N53: 1 | O53: =IFERROR(IF($J53>0,$K53*$M53*$N53*$M$66*($J53/'local 1'!$F$42),$I$10*$K53*$M53),0) -> 0
A54: Non renseigné | C54: -9 | E54: 1 | H54: =IFERROR(VLOOKUP(designation7,source1,2,FALSE),0) -> 0 | I54: 0 | J54: 0 | M54: 28 | N54: 1 | O54: =IFERROR(IF($J54>0,$K54*$M54*$N54*$M$66*($J54/'local 1'!$F$42),$I$10*$K54*$M54),0) -> 0
A55: Non renseigné | C55: -9 | E55: 1 | H55: =IFERROR(VLOOKUP(designation8,source1,2,FALSE),0) -> 0 | I55: 0 | J55: 0 | M55: 28 | N55: 1 | O55: =IFERROR(IF($J55>0,$K55*$M55*$N55*$M$66*($J55/'local 1'!$F$42),$I$10*$K55*$M55),0) -> 0
A56: Non renseigné | C56: -9 | E56: 1 | H56: =IFERROR(VLOOKUP(designation9,source1,2,FALSE),0) -> 0 | I56: 0 | J56: 0 | M56: 28 | N56: 1 | O56: =IFERROR(IF($J56>0,$K56*$M56*$N56*$M$66*($J56/'local 1'!$F$42),$I$10*$K56*$M56),0) -> 0
A57: Non renseigné | C57: -9 | E57: 1 | H57: =IFERROR(VLOOKUP(designation10,source1,2,FALSE),0) -> 0 | I57: 0 | J57: 0 | M57: 28 | N57: 1 | O57: =IFERROR(IF($J57>0,$K57*$M57*$N57*$M$66*($J57/'local 1'!$F$42),$I$10*$K57*$M57),0) -> 0
A58: Non renseigné | C58: -9 | E58: 1 | H58: =IFERROR(VLOOKUP(designation11,source1,2,FALSE),0) -> 0 | I58: 0 | J58: 0 | M58: 28 | N58: 1 | O58: =IFERROR(IF($J58>0,$K58*$M58*$N58*$M$66*($J58/'local 1'!$F$42),$I$10*$K58*$M58),0) -> 0
A59: Non renseigné | C59: -9 | E59: 1 | H59: =IFERROR(VLOOKUP(designation12,source1,2,FALSE),0) -> 0 | I59: 0 | J59: 0 | M59: 28 | N59: 1 | O59: =IFERROR(IF($J59>0,$K59*$M59*$N59*$M$66*($J59/'local 1'!$F$42),$I$10*$K59*$M59),0) -> 0
A60: Non renseigné | C60: -9 | E60: 1 | H60: =IFERROR(VLOOKUP(designation13,source1,2,FALSE),0) -> 0 | I60: 0 | J60: 0 | M60: 28 | N60: 1 | O60: =IFERROR(IF($J60>0,$K60*$M60*$N60*$M$66*($J60/'local 1'!$F$42),$I$10*$K60*$M60),0) -> 0
A61: Non renseigné | C61: -9 | E61: 1 | H61: =IFERROR(VLOOKUP(designation14,source1,2,FALSE),0) -> 0 | I61: 0 | J61: 0 | M61: 28 | N61: 1 | O61: =IFERROR(IF($J61>0,$K61*$M61*$N61*$M$66*($J61/'local 1'!$F$42),$I$10*$K61*$M61),0) -> 0
A62: Non renseigné | C62: -9 | E62: 1 | H62: =IFERROR(VLOOKUP(designation15,source1,2,FALSE),0) -> 0 | I62: 0 | J62: 0 | M62: 28 | N62: 1 | O62: =IFERROR(IF($J62>0,$K62*$M62*$N62*$M$66*($J62/'local 1'!$F$42),$I$10*$K62*$M62),0) -> 0
A63: Non renseigné | C63: -9 | E63: 1 | H63: =IFERROR(VLOOKUP(designation16,source1,2,FALSE),0) -> 0 | I63: 0 | J63: 0 | M63: 28 | N63: 1 | O63: =IFERROR(IF($J63>0,$K63*$M63*$N63*$M$66*($J63/'local 1'!$F$42),$I$10*$K63*$M63),0) -> 0
I64: Σ | J64: =SUM(J48:J63) -> 5
K65: Débit réglementaire (en m3/h) : | M65: 130
I66: Ventilation naturelle | K66: Coefficient : | L66: =IFERROR(VLOOKUP(designation17,typeventil,2,FALSE),0) -> 1.3 | M66: =$M$65*$L$66 -> 169
K67: n.V - Débit rég. (en m3/h) | M67: =I10-M65 -> -55
K68: Total pertes aérauliques (en W) : | M68: =SUM(O48:O63) -> 0

Sheet local 3
B1: =RIGHT(CELL("nomfichier",B1),LEN(CELL("nomfichier",B1))-FIND("]",CELL("nomfichier",B1))) -> 
B2: Date : | C2: =TODAY() -> 2013-01-28
B3: Affaire :
B4: Localité :
B5: Hauteur du batiment (en m) : | G5: Température ext. de base (°C) : | H5: -9 | I5: Notes:
B6: Dénivellation yo (en m): | G6: Région (H1,H2,H3) :
B7: Hauteur au sol (en m) :
G8: Température intérieure (°C) : | H8: 19
B9: Local : | C9: =RIGHT(CELL("nomfichier",B1),LEN(CELL("nomfichier",B1))-FIND("]",CELL("nomfichier",B1))) ->  | D9: Surface (en m²) : | G9: Renouvellement d'air : | H9: n en vol/h | I9: 2 | J9: tri =
B10: N°: | D10: Hauteur (en m) : | H10: n.V en m3/h | I10: =$I$9*$F$11 -> 0 | J10: tai =
B11: Type chauffage (C/R) | D11: Volume (en m3) : | F11: =F9*F10 -> 0
B14: Pertes statiques :
B16: Désignation | F16: Nbre | G16: Dimensions | I16: Surface/Long. | K16: U ou ψ (en W/m².K) | L16: C2 | M16: Δt(°C ou K) | N16: bu | O16: Pertes | P16: Références
B17: Repère paroi | C17: Indication | D17: te (en °C) | E17: Or. | G17: Largeur (en m) | H17: Haut/Long (en m) | I17: Brute (m²/m) | J17: Nette (m²/m)
D18: =$H$5 -> -9 | I18: =$G18*$H18*$F18 -> 0 | J18: =IF(OR(B19="FE",B19="PO"),IF(OR(B20="FE",B20="PO"),IF(OR(B21="FE",B21="PO"),I18-I19-I20-I21,I18-I19-I20),I18-I19),I18)+IF(AND(OR(B18="FE",B18="PO"),OR(B19="FE",B19="PO")),+I19)+IF(AND(OR(B18="FE",B18="PO"),OR(B19="FE",B19="PO"),OR(B20="FE",B20="PO")),+I20) -> 0 | L18: 1 | M18: =$H$8-$H$5 -> 28 | N18: 1 | O18: =$N18*$M18*$K18*$J18 -> 0
D19: =$H$5 -> -9 | I19: =$G19*$H19*$F19 -> 0 | J19: =IF(OR(B20="FE",B20="PO"),IF(OR(B21="FE",B21="PO"),IF(OR(B22="FE",B22="PO"),I19-I20-I21-I22,I19-I20-I21),I19-I20),I19)+IF(AND(OR(B19="FE",B19="PO"),OR(B20="FE",B20="PO")),+I20)+IF(AND(OR(B19="FE",B19="PO"),OR(B20="FE",B20="PO"),OR(B21="FE",B21="PO")),+I21) -> 0 | L19: 1 | M19: =$H$8-$H$5 -> 28 | N19: 1 | O19: =$N19*$M19*$K19*$J19 -> 0
D20: =$H$5 -> -9 | I20: =$G20*$H20*$F20 -> 0 | J20: 0 | L20: 1 | M20: =$H$8-$H$5 -> 28 | N20: 1 | O20: =$N20*$M20*$K20*$J20 -> 0
D21: =$H$5 -> -9 | I21: =$G21*$H21*$F21 -> 0 | J21: 0 | L21: 1 | M21: 28 | N21: 1 | O21: 0
D22: -9 | I22: 0 | J22: 0 | L22: 1 | M22: 28 | N22: 1 | O22: 0
D23: -9 | I23: 0 | J23: 0 | L23: 1 | M23: 28 | N23: 1 | O23: 0
D24: -9 | I24: 0 | J24: 0 | L24: 1 | M24: 28 | N24: 1 | O24: 0
D25: -9 | I25: 0 | J25: 0 | L25: 1 | M25: 28 | N25: 1 | O25: 0
D26: -9 | I26: 0 | J26: 0 | L26: 1 | M26: 28 | N26: 1 | O26: 0
D27: -9 | I27: 0 | J27: 0 | L27: 1 | M27: 28 | N27: 1 | O27: 0
D28: -9 | I28: 0 | J28: 0 | L28: 1 | M28: 28 | N28: 1 | O28: 0
D29: -9 | I29: 0 | J29: 0 | L29: 1 | M29: 28 | N29: 1 | O29: 0
D30: -9 | I30: 0 | J30: 0 | L30: 1 | M30: 28 | N30: 1 | O30: 0
D31: -9 | I31: 0 | J31: 0 | L31: 1 | M31: 28 | N31: 1 | O31: 0
D32: -9 | I32: 0 | J32: 0 | L32: 1 | M32: 28 | N32: 1 | O32: 0
D33: -9 | I33: 0 | J33: 0 | L33: 1 | M33: 28 | N33: 1 | O33: 0
D34: -9 | I34: 0 | J34: 0 | L34: 1 | M34: 28 | N34: 1 | O34: 0
D35: -9 | I35: 0 | J35: 0 | L35: 1 | M35: 28 | N35: 1 | O35: 0
D36: -9 | I36: 0 | J36: 0 | L36: 1 | M36: 28 | N36: 1 | O36: 0
D37: -9 | I37: 0 | J37: 0 | L37: 1 | M37: 28 | N37: 1 | O37: 0
D38: -9 | I38: 0 | J38: 0 | L38: 1 | M38: 28 | N38: 1 | O38: 0
D39: -9 | I39: 0 | J39: 0 | L39: 1 | M39: 28 | N39: 1 | O39: 0
B40: légende: ME = mur ; FE = fenêtre ; PO = porte ; PLH = plancher-haut ; PLB = plancher-bas ; PT = Pont Thermique
H41: Total déperditions [statiques et aérauliques] (en W) | K41: Total pertes parois (en W) : | M41: =SUM(O18:O39) -> 0
H42: local | I42: =RIGHT(CELL("nomfichier",B1),LEN(CELL("nomfichier",B1))-FIND("]",CELL("nomfichier",B1))) ->  | J42: =$M$43+$M$68 -> 0 | K42: k (coef pont thermiques) en% | M42: 0
K43: Total pertes parois+ponts (en W) : | M43: =((M41*M42)/100)+M41 -> 0
B44: pertes aérauliques :
A46: Types d'ouvertures | B46: Désignation | F46: Dimensions | H46: Coefficients | I46: Surface ou linéaire | J46: Perméabilité | K46: U (en W/m².K) | L46: Débit (m3/h) | M46: Δt(°C ou K) | N46: b | O46: Pertes | P46: Références
B47: Repère type | C47: Te(°C) | D47: 0r. | E47: Nbre | F47: Largeur (en m) | G47: Haut/long (en m)
A48: Non renseigné | C48: =$H$5 -> -9 | E48: 1 | H48: =IFERROR(VLOOKUP(designation1,source1,2,FALSE),0) -> 0 | I48: =IFERROR(IF(EXACT(LEFT($A48,6),"Coffre"),$G48,$F48*$G48),"/") -> 0 | J48: =IFERROR(IF(EXACT(LEFT($A48,6),"Entrée"),$E48*$H48,$I48*$H48*$E48),"/") -> 0 | M48: =$H$8-$C48 -> 28 | N48: 1 | O48: =IFERROR(IF($J48>0,$K48*$M48*$N48*$M$66*($J48/'local 1'!$F$42),$I$10*$K48*$M48),0) -> 0
A49: Non renseigné | C49: =$H$5 -> -9 | E49: 1 | H49: =IFERROR(VLOOKUP(designation2,source1,2,FALSE),0) -> 0 | I49: =IFERROR(IF(EXACT(LEFT($A49,6),"Coffre"),$G49,$F49*$G49),"/") -> 0 | J49: =IFERROR(IF(EXACT(LEFT($A49,6),"Entrée"),$E49*$H49,$I49*$H49*$E49),"/") -> 0 | M49: =$H$8-$C49 -> 28 | N49: 1 | O49: =IFERROR(IF($J49>0,$K49*$M49*$N49*$M$66*($J49/'local 1'!$F$42),$I$10*$K49*$M49),0) -> 0
A50: Non renseigné | C50: -9 | E50: 1 | H50: =IFERROR(VLOOKUP(designation3,source1,2,FALSE),0) -> 0 | I50: 0 | J50: 0 | M50: 28 | N50: 1 | O50: =IFERROR(IF($J50>0,$K50*$M50*$N50*$M$66*($J50/'local 1'!$F$42),$I$10*$K50*$M50),0) -> 0
A51: Non renseigné | C51: -9 | E51: 1 | H51: =IFERROR(VLOOKUP(designation4,source1,2,FALSE),0) -> 0 | I51: 0 | J51: 0 | M51: 28 | N51: 1 | O51: =IFERROR(IF($J51>0,$K51*$M51*$N51*$M$66*($J51/'local 1'!$F$42),$I$10*$K51*$M51),0) -> 0
A52: Non renseigné | C52: -9 | E52: 1 | H52: =IFERROR(VLOOKUP(designation5,source1,2,FALSE),0) -> 0 | I52: 0 | J52: 0 | M52: 28 | N52: 1 | O52: =IFERROR(IF($J52>0,$K52*$M52*$N52*$M$66*($J52/'local 1'!$F$42),$I$10*$K52*$M52),0) -> 0
A53: Non renseigné | C53: -9 | E53: 1 | H53: =IFERROR(VLOOKUP(designation6,source1,2,FALSE),0) -> 0 | I53: 0 | J53: 0 | M53: 28 | N53: 1 | O53: =IFERROR(IF($J53>0,$K53*$M53*$N53*$M$66*($J53/'local 1'!$F$42),$I$10*$K53*$M53),0) -> 0
A54: Non renseigné | C54: -9 | E54: 1 | H54: =IFERROR(VLOOKUP(designation7,source1,2,FALSE),0) -> 0 | I54: 0 | J54: 0 | M54: 28 | N54: 1 | O54: =IFERROR(IF($J54>0,$K54*$M54*$N54*$M$66*($J54/'local 1'!$F$42),$I$10*$K54*$M54),0) -> 0
A55: Non renseigné | C55: -9 | E55: 1 | H55: =IFERROR(VLOOKUP(designation8,source1,2,FALSE),0) -> 0 | I55: 0 | J55: 0 | M55: 28 | N55: 1 | O55: =IFERROR(IF($J55>0,$K55*$M55*$N55*$M$66*($J55/'local 1'!$F$42),$I$10*$K55*$M55),0) -> 0
A56: Non renseigné | C56: -9 | E56: 1 | H56: =IFERROR(VLOOKUP(designation9,source1,2,FALSE),0) -> 0 | I56: 0 | J56: 0 | M56: 28 | N56: 1 | O56: =IFERROR(IF($J56>0,$K56*$M56*$N56*$M$66*($J56/'local 1'!$F$42),$I$10*$K56*$M56),0) -> 0
A57: Non renseigné | C57: -9 | E57: 1 | H57: =IFERROR(VLOOKUP(designation10,source1,2,FALSE),0) -> 0 | I57: 0 | J57: 0 | M57: 28 | N57: 1 | O57: =IFERROR(IF($J57>0,$K57*$M57*$N57*$M$66*($J57/'local 1'!$F$42),$I$10*$K57*$M57),0) -> 0
A58: Non renseigné | C58: -9 | E58: 1 | H58: =IFERROR(VLOOKUP(designation11,source1,2,FALSE),0) -> 0 | I58: 0 | J58: 0 | M58: 28 | N58: 1 | O58: =IFERROR(IF($J58>0,$K58*$M58*$N58*$M$66*($J58/'local 1'!$F$42),$I$10*$K58*$M58),0) -> 0
A59: Non renseigné | C59: -9 | E59: 1 | H59: =IFERROR(VLOOKUP(designation12,source1,2,FALSE),0) -> 0 | I59: 0 | J59: 0 | M59: 28 | N59: 1 | O59: =IFERROR(IF($J59>0,$K59*$M59*$N59*$M$66*($J59/'local 1'!$F$42),$I$10*$K59*$M59),0) -> 0
A60: Non renseigné | C60: -9 | E60: 1 | H60: =IFERROR(VLOOKUP(designation13,source1,2,FALSE),0) -> 0 | I60: 0 | J60: 0 | M60: 28 | N60: 1 | O60: =IFERROR(IF($J60>0,$K60*$M60*$N60*$M$66*($J60/'local 1'!$F$42),$I$10*$K60*$M60),0) -> 0
A61: Non renseigné | C61: -9 | E61: 1 | H61: =IFERROR(VLOOKUP(designation14,source1,2,FALSE),0) -> 0 | I61: 0 | J61: 0 | M61: 28 | N61: 1 | O61: =IFERROR(IF($J61>0,$K61*$M61*$N61*$M$66*($J61/'local 1'!$F$42),$I$10*$K61*$M61),0) -> 0
A62: Non renseigné | C62: -9 | E62: 1 | H62: =IFERROR(VLOOKUP(designation15,source1,2,FALSE),0) -> 0 | I62: 0 | J62: 0 | M62: 28 | N62: 1 | O62: =IFERROR(IF($J62>0,$K62*$M62*$N62*$M$66*($J62/'local 1'!$F$42),$I$10*$K62*$M62),0) -> 0
A63: Non renseigné | C63: -9 | E63: 1 | H63: =IFERROR(VLOOKUP(designation16,source1,2,FALSE),0) -> 0 | I63: 0 | J63: 0 | M63: 28 | N63: 1 | O63: =IFERROR(IF($J63>0,$K63*$M63*$N63*$M$66*($J63/'local 1'!$F$42),$I$10*$K63*$M63),0) -> 0
I64: Σ | J64: =SUM(J48:J63) -> 0
K65: Débit réglementaire (en m3/h) : | M65: 130
I66: Ventilation non réglementaire | K66: Coefficient : | L66: =IFERROR(VLOOKUP(designation17,typeventil,2,FALSE),0) -> 0 | M66: =$M$65*$L$66 -> 0
K67: n.V - Débit rég. (en m3/h) | M67: =I10-M65 -> -130
K68: Total pertes aérauliques (en W) : | M68: =SUM(O48:O63) -> 0

Sheet local 4
B1: =RIGHT(CELL("nomfichier",B1),LEN(CELL("nomfichier",B1))-FIND("]",CELL("nomfichier",B1))) -> 
B2: Date : | C2: =TODAY() -> 2013-01-28
B3: Affaire :
B4: Localité :
B5: Hauteur du batiment (en m) : | G5: Température ext. de base (°C) : | H5: -9 | I5: Notes:
B6: Dénivellation yo (en m): | G6: Région (H1,H2,H3) :
B7: Hauteur au sol (en m) :
G8: Température intérieure (°C) : | H8: 19
B9: Local : | C9: =RIGHT(CELL("nomfichier",B1),LEN(CELL("nomfichier",B1))-FIND("]",CELL("nomfichier",B1))) ->  | D9: Surface (en m²) : | G9: Renouvellement d'air : | H9: n en vol/h | I9: 2 | J9: tri =
B10: N°: | D10: Hauteur (en m) : | H10: n.V en m3/h | I10: =$I$9*$F$11 -> 0 | J10: tai =
B11: Type chauffage (C/R) | D11: Volume (en m3) : | F11: =F9*F10 -> 0
B14: Pertes statiques :
B16: Désignation | F16: Nbre | G16: Dimensions | I16: Surface/Long. | K16: U ou ψ (en W/m².K) | L16: C2 | M16: Δt(°C ou K) | N16: bu | O16: Pertes | P16: Références
B17: Repère paroi | C17: Indication | D17: te (en °C) | E17: Or. | G17: Largeur (en m) | H17: Haut/Long (en m) | I17: Brute (m²/m) | J17: Nette (m²/m)
D18: =$H$5 -> -9 | I18: =$G18*$H18*$F18 -> 0 | J18: =IF(OR(B19="FE",B19="PO"),IF(OR(B20="FE",B20="PO"),IF(OR(B21="FE",B21="PO"),I18-I19-I20-I21,I18-I19-I20),I18-I19),I18)+IF(AND(OR(B18="FE",B18="PO"),OR(B19="FE",B19="PO")),+I19)+IF(AND(OR(B18="FE",B18="PO"),OR(B19="FE",B19="PO"),OR(B20="FE",B20="PO")),+I20) -> 0 | L18: 1 | M18: =$H$8-$H$5 -> 28 | N18: 1 | O18: =$N18*$M18*$K18*$J18 -> 0
D19: =$H$5 -> -9 | I19: =$G19*$H19*$F19 -> 0 | J19: =IF(OR(B20="FE",B20="PO"),IF(OR(B21="FE",B21="PO"),IF(OR(B22="FE",B22="PO"),I19-I20-I21-I22,I19-I20-I21),I19-I20),I19)+IF(AND(OR(B19="FE",B19="PO"),OR(B20="FE",B20="PO")),+I20)+IF(AND(OR(B19="FE",B19="PO"),OR(B20="FE",B20="PO"),OR(B21="FE",B21="PO")),+I21) -> 0 | L19: 1 | M19: =$H$8-$H$5 -> 28 | N19: 1 | O19: =$N19*$M19*$K19*$J19 -> 0
D20: =$H$5 -> -9 | I20: =$G20*$H20*$F20 -> 0 | J20: 0 | L20: 1 | M20: =$H$8-$H$5 -> 28 | N20: 1 | O20: =$N20*$M20*$K20*$J20 -> 0
D21: =$H$5 -> -9 | I21: =$G21*$H21*$F21 -> 0 | J21: 0 | L21: 1 | M21: 28 | N21: 1 | O21: 0
D22: -9 | I22: 0 | J22: 0 | L22: 1 | M22: 28 | N22: 1 | O22: 0
D23: -9 | I23: 0 | J23: 0 | L23: 1 | M23: 28 | N23: 1 | O23: 0
D24: -9 | I24: 0 | J24: 0 | L24: 1 | M24: 28 | N24: 1 | O24: 0
D25: -9 | I25: 0 | J25: 0 | L25: 1 | M25: 28 | N25: 1 | O25: 0
D26: -9 | I26: 0 | J26: 0 | L26: 1 | M26: 28 | N26: 1 | O26: 0
D27: -9 | I27: 0 | J27: 0 | L27: 1 | M27: 28 | N27: 1 | O27: 0
D28: -9 | I28: 0 | J28: 0 | L28: 1 | M28: 28 | N28: 1 | O28: 0
D29: -9 | I29: 0 | J29: 0 | L29: 1 | M29: 28 | N29: 1 | O29: 0
D30: -9 | I30: 0 | J30: 0 | L30: 1 | M30: 28 | N30: 1 | O30: 0
D31: -9 | I31: 0 | J31: 0 | L31: 1 | M31: 28 | N31: 1 | O31: 0
D32: -9 | I32: 0 | J32: 0 | L32: 1 | M32: 28 | N32: 1 | O32: 0
D33: -9 | I33: 0 | J33: 0 | L33: 1 | M33: 28 | N33: 1 | O33: 0
D34: -9 | I34: 0 | J34: 0 | L34: 1 | M34: 28 | N34: 1 | O34: 0
D35: -9 | I35: 0 | J35: 0 | L35: 1 | M35: 28 | N35: 1 | O35: 0
D36: -9 | I36: 0 | J36: 0 | L36: 1 | M36: 28 | N36: 1 | O36: 0
D37: -9 | I37: 0 | J37: 0 | L37: 1 | M37: 28 | N37: 1 | O37: 0
D38: -9 | I38: 0 | J38: 0 | L38: 1 | M38: 28 | N38: 1 | O38: 0
D39: -9 | I39: 0 | J39: 0 | L39: 1 | M39: 28 | N39: 1 | O39: 0
B40: légende: ME = mur ; FE = fenêtre ; PO = porte ; PLH = plancher-haut ; PLB = plancher-bas ; PT = Pont Thermique
H41: Total déperditions [statiques et aérauliques] (en W) | K41: Total pertes parois (en W) : | M41: =SUM(O18:O39) -> 0
H42: local | I42: =RIGHT(CELL("nomfichier",B1),LEN(CELL("nomfichier",B1))-FIND("]",CELL("nomfichier",B1))) ->  | J42: =$M$43+$M$68 -> 0 | K42: k (coef pont thermiques) en% | M42: 0
K43: Total pertes parois+ponts (en W) : | M43: =((M41*M42)/100)+M41 -> 0
B44: pertes aérauliques :
A46: Types d'ouvertures | B46: Désignation | F46: Dimensions | H46: Coefficients | I46: Surface ou linéaire | J46: Perméabilité | K46: U (en W/m².K) | L46: Débit (m3/h) | M46: Δt(°C ou K) | N46: b | O46: Pertes | P46: Références
B47: Repère type | C47: Te(°C) | D47: 0r. | E47: Nbre | F47: Largeur (en m) | G47: Haut/long (en m)
A48: Non renseigné | C48: =$H$5 -> -9 | E48: 1 | H48: =IFERROR(VLOOKUP(designation1,source1,2,FALSE),0) -> 0 | I48: =IFERROR(IF(EXACT(LEFT($A48,6),"Coffre"),$G48,$F48*$G48),"/") -> 0 | J48: =IFERROR(IF(EXACT(LEFT($A48,6),"Entrée"),$E48*$H48,$I48*$H48*$E48),"/") -> 0 | M48: =$H$8-$C48 -> 28 | N48: 1 | O48: =IFERROR(IF($J48>0,$K48*$M48*$N48*$M$66*($J48/'local 1'!$F$42),$I$10*$K48*$M48),0) -> 0
A49: Non renseigné | C49: =$H$5 -> -9 | E49: 1 | H49: =IFERROR(VLOOKUP(designation2,source1,2,FALSE),0) -> 0 | I49: =IFERROR(IF(EXACT(LEFT($A49,6),"Coffre"),$G49,$F49*$G49),"/") -> 0 | J49: =IFERROR(IF(EXACT(LEFT($A49,6),"Entrée"),$E49*$H49,$I49*$H49*$E49),"/") -> 0 | M49: =$H$8-$C49 -> 28 | N49: 1 | O49: =IFERROR(IF($J49>0,$K49*$M49*$N49*$M$66*($J49/'local 1'!$F$42),$I$10*$K49*$M49),0) -> 0
A50: Non renseigné | C50: -9 | E50: 1 | H50: =IFERROR(VLOOKUP(designation3,source1,2,FALSE),0) -> 0 | I50: 0 | J50: 0 | M50: 28 | N50: 1 | O50: =IFERROR(IF($J50>0,$K50*$M50*$N50*$M$66*($J50/'local 1'!$F$42),$I$10*$K50*$M50),0) -> 0
A51: Non renseigné | C51: -9 | E51: 1 | H51: =IFERROR(VLOOKUP(designation4,source1,2,FALSE),0) -> 0 | I51: 0 | J51: 0 | M51: 28 | N51: 1 | O51: =IFERROR(IF($J51>0,$K51*$M51*$N51*$M$66*($J51/'local 1'!$F$42),$I$10*$K51*$M51),0) -> 0
A52: Non renseigné | C52: -9 | E52: 1 | H52: =IFERROR(VLOOKUP(designation5,source1,2,FALSE),0) -> 0 | I52: 0 | J52: 0 | M52: 28 | N52: 1 | O52: =IFERROR(IF($J52>0,$K52*$M52*$N52*$M$66*($J52/'local 1'!$F$42),$I$10*$K52*$M52),0) -> 0
A53: Non renseigné | C53: -9 | E53: 1 | H53: =IFERROR(VLOOKUP(designation6,source1,2,FALSE),0) -> 0 | I53: 0 | J53: 0 | M53: 28 | N53: 1 | O53: =IFERROR(IF($J53>0,$K53*$M53*$N53*$M$66*($J53/'local 1'!$F$42),$I$10*$K53*$M53),0) -> 0
A54: Non renseigné | C54: -9 | E54: 1 | H54: =IFERROR(VLOOKUP(designation7,source1,2,FALSE),0) -> 0 | I54: 0 | J54: 0 | M54: 28 | N54: 1 | O54: =IFERROR(IF($J54>0,$K54*$M54*$N54*$M$66*($J54/'local 1'!$F$42),$I$10*$K54*$M54),0) -> 0
A55: Non renseigné | C55: -9 | E55: 1 | H55: =IFERROR(VLOOKUP(designation8,source1,2,FALSE),0) -> 0 | I55: 0 | J55: 0 | M55: 28 | N55: 1 | O55: =IFERROR(IF($J55>0,$K55*$M55*$N55*$M$66*($J55/'local 1'!$F$42),$I$10*$K55*$M55),0) -> 0
A56: Non renseigné | C56: -9 | E56: 1 | H56: =IFERROR(VLOOKUP(designation9,source1,2,FALSE),0) -> 0 | I56: 0 | J56: 0 | M56: 28 | N56: 1 | O56: =IFERROR(IF($J56>0,$K56*$M56*$N56*$M$66*($J56/'local 1'!$F$42),$I$10*$K56*$M56),0) -> 0
A57: Non renseigné | C57: -9 | E57: 1 | H57: =IFERROR(VLOOKUP(designation10,source1,2,FALSE),0) -> 0 | I57: 0 | J57: 0 | M57: 28 | N57: 1 | O57: =IFERROR(IF($J57>0,$K57*$M57*$N57*$M$66*($J57/'local 1'!$F$42),$I$10*$K57*$M57),0) -> 0
A58: Non renseigné | C58: -9 | E58: 1 | H58: =IFERROR(VLOOKUP(designation11,source1,2,FALSE),0) -> 0 | I58: 0 | J58: 0 | M58: 28 | N58: 1 | O58: =IFERROR(IF($J58>0,$K58*$M58*$N58*$M$66*($J58/'local 1'!$F$42),$I$10*$K58*$M58),0) -> 0
A59: Non renseigné | C59: -9 | E59: 1 | H59: =IFERROR(VLOOKUP(designation12,source1,2,FALSE),0) -> 0 | I59: 0 | J59: 0 | M59: 28 | N59: 1 | O59: =IFERROR(IF($J59>0,$K59*$M59*$N59*$M$66*($J59/'local 1'!$F$42),$I$10*$K59*$M59),0) -> 0
A60: Non renseigné | C60: -9 | E60: 1 | H60: =IFERROR(VLOOKUP(designation13,source1,2,FALSE),0) -> 0 | I60: 0 | J60: 0 | M60: 28 | N60: 1 | O60: =IFERROR(IF($J60>0,$K60*$M60*$N60*$M$66*($J60/'local 1'!$F$42),$I$10*$K60*$M60),0) -> 0
A61: Non renseigné | C61: -9 | E61: 1 | H61: =IFERROR(VLOOKUP(designation14,source1,2,FALSE),0) -> 0 | I61: 0 | J61: 0 | M61: 28 | N61: 1 | O61: =IFERROR(IF($J61>0,$K61*$M61*$N61*$M$66*($J61/'local 1'!$F$42),$I$10*$K61*$M61),0) -> 0
A62: Non renseigné | C62: -9 | E62: 1 | H62: =IFERROR(VLOOKUP(designation15,source1,2,FALSE),0) -> 0 | I62: 0 | J62: 0 | M62: 28 | N62: 1 | O62: =IFERROR(IF($J62>0,$K62*$M62*$N62*$M$66*($J62/'local 1'!$F$42),$I$10*$K62*$M62),0) -> 0
A63: Non renseigné | C63: -9 | E63: 1 | H63: =IFERROR(VLOOKUP(designation16,source1,2,FALSE),0) -> 0 | I63: 0 | J63: 0 | M63: 28 | N63: 1 | O63: =IFERROR(IF($J63>0,$K63*$M63*$N63*$M$66*($J63/'local 1'!$F$42),$I$10*$K63*$M63),0) -> 0
I64: Σ | J64: =SUM(J48:J63) -> 0
K65: Débit réglementaire (en m3/h) : | M65: 130
I66: Ventilation non réglementaire | K66: Coefficient : | L66: =IFERROR(VLOOKUP(designation17,typeventil,2,FALSE),0) -> 0 | M66: =$M$65*$L$66 -> 0
K67: n.V - Débit rég. (en m3/h) | M67: =I10-M65 -> -130
K68: Total pertes aérauliques (en W) : | M68: =SUM(O48:O63) -> 0

Sheet local 5
B1: =RIGHT(CELL("nomfichier",B1),LEN(CELL("nomfichier",B1))-FIND("]",CELL("nomfichier",B1))) -> 
B2: Date : | C2: =TODAY() -> 2013-01-28
B3: Affaire :
B4: Localité :
B5: Hauteur du batiment (en m) : | G5: Température ext. de base (°C) : | H5: -9 | I5: Notes:
B6: Dénivellation yo (en m): | G6: Région (H1,H2,H3) :
B7: Hauteur au sol (en m) :
G8: Température intérieure (°C) : | H8: 19
B9: Local : | C9: =RIGHT(CELL("nomfichier",B1),LEN(CELL("nomfichier",B1))-FIND("]",CELL("nomfichier",B1))) ->  | D9: Surface (en m²) : | F9: 20 | G9: Renouvellement d'air : | H9: n en vol/h | I9: 2 | J9: tri =
B10: N°: | D10: Hauteur (en m) : | F10: 2.5 | H10: n.V en m3/h | I10: =$I$9*$F$11 -> 100 | J10: tai =
B11: Type chauffage (C/R) | D11: Volume (en m3) : | F11: =F9*F10 -> 50
B14: Pertes statiques :
B16: Désignation | F16: Nbre | G16: Dimensions | I16: Surface/Long. | K16: U ou ψ (en W/m².K) | L16: C2 | M16: Δt(°C ou K) | N16: bu | O16: Pertes | P16: Références
B17: Repère paroi | C17: Indication | D17: te (en °C) | E17: Or. | G17: Largeur (en m) | H17: Haut/Long (en m) | I17: Brute (m²/m) | J17: Nette (m²/m)
B18: PT | D18: =$H$5 -> -9 | F18: 4 | G18: 2.5 | H18: 1 | I18: =$G18*$H18*$F18 -> 10 | J18: =IF(OR(B19="FE",B19="PO"),IF(OR(B20="FE",B20="PO"),IF(OR(B21="FE",B21="PO"),I18-I19-I20-I21,I18-I19-I20),I18-I19),I18)+IF(AND(OR(B18="FE",B18="PO"),OR(B19="FE",B19="PO")),+I19)+IF(AND(OR(B18="FE",B18="PO"),OR(B19="FE",B19="PO"),OR(B20="FE",B20="PO")),+I20) -> 10 | K18: 0.1 | L18: 1 | M18: =$H$8-$H$5 -> 28 | N18: 1 | O18: =$N18*$M18*$K18*$J18 -> 28
B19: PT | D19: =$H$5 -> -9 | F19: 3 | G19: 2.5 | H19: 1 | I19: =$G19*$H19*$F19 -> 7.5 | J19: =IF(OR(B20="FE",B20="PO"),IF(OR(B21="FE",B21="PO"),IF(OR(B22="FE",B22="PO"),I19-I20-I21-I22,I19-I20-I21),I19-I20),I19)+IF(AND(OR(B19="FE",B19="PO"),OR(B20="FE",B20="PO")),+I20)+IF(AND(OR(B19="FE",B19="PO"),OR(B20="FE",B20="PO"),OR(B21="FE",B21="PO")),+I21) -> 7.5 | K19: 0.15 | L19: 1 | M19: =$H$8-$H$5 -> 28 | N19: 1 | O19: =$N19*$M19*$K19*$J19 -> 31.5
D20: =$H$5 -> -9 | I20: =$G20*$H20*$F20 -> 0 | J20: 0 | L20: 1 | M20: =$H$8-$H$5 -> 28 | N20: 1 | O20: =$N20*$M20*$K20*$J20 -> 0
D21: =$H$5 -> -9 | I21: =$G21*$H21*$F21 -> 0 | J21: 0 | L21: 1 | M21: 28 | N21: 1 | O21: 0
D22: -9 | I22: 0 | J22: 0 | L22: 1 | M22: 28 | N22: 1 | O22: 0
D23: -9 | I23: 0 | J23: 0 | L23: 1 | M23: 28 | N23: 1 | O23: 0
D24: -9 | I24: 0 | J24: 0 | L24: 1 | M24: 28 | N24: 1 | O24: 0
D25: -9 | I25: 0 | J25: 0 | L25: 1 | M25: 28 | N25: 1 | O25: 0
D26: -9 | I26: 0 | J26: 0 | L26: 1 | M26: 28 | N26: 1 | O26: 0
D27: -9 | I27: 0 | J27: 0 | L27: 1 | M27: 28 | N27: 1 | O27: 0
D28: -9 | I28: 0 | J28: 0 | L28: 1 | M28: 28 | N28: 1 | O28: 0
D29: -9 | I29: 0 | J29: 0 | L29: 1 | M29: 28 | N29: 1 | O29: 0
D30: -9 | I30: 0 | J30: 0 | L30: 1 | M30: 28 | N30: 1 | O30: 0
D31: -9 | I31: 0 | J31: 0 | L31: 1 | M31: 28 | N31: 1 | O31: 0
D32: -9 | I32: 0 | J32: 0 | L32: 1 | M32: 28 | N32: 1 | O32: 0
D33: -9 | I33: 0 | J33: 0 | L33: 1 | M33: 28 | N33: 1 | O33: 0
D34: -9 | I34: 0 | J34: 0 | L34: 1 | M34: 28 | N34: 1 | O34: 0
D35: -9 | I35: 0 | J35: 0 | L35: 1 | M35: 28 | N35: 1 | O35: 0
D36: -9 | I36: 0 | J36: 0 | L36: 1 | M36: 28 | N36: 1 | O36: 0
D37: -9 | I37: 0 | J37: 0 | L37: 1 | M37: 28 | N37: 1 | O37: 0
D38: -9 | I38: 0 | J38: 0 | L38: 1 | M38: 28 | N38: 1 | O38: 0
D39: -9 | I39: 0 | J39: 0 | L39: 1 | M39: 28 | N39: 1 | O39: 0
B40: légende: ME = mur ; FE = fenêtre ; PO = porte ; PLH = plancher-haut ; PLB = plancher-bas ; PT = Pont Thermique
H41: Total déperditions [statiques et aérauliques] (en W) | K41: Total pertes parois (en W) : | M41: =SUM(O18:O39) -> 59.5
H42: local | I42: =RIGHT(CELL("nomfichier",B1),LEN(CELL("nomfichier",B1))-FIND("]",CELL("nomfichier",B1))) ->  | J42: =$M$43+$M$68 -> 59.5 | K42: k (coef pont thermiques) en% | M42: 0
K43: Total pertes parois+ponts (en W) : | M43: =((M41*M42)/100)+M41 -> 59.5
B44: pertes aérauliques :
A46: Types d'ouvertures | B46: Désignation | F46: Dimensions | H46: Coefficients | I46: Surface ou linéaire | J46: Perméabilité | K46: U (en W/m².K) | L46: Débit (m3/h) | M46: Δt(°C ou K) | N46: b | O46: Pertes | P46: Références
B47: Repère type | C47: Te(°C) | D47: 0r. | E47: Nbre | F47: Largeur (en m) | G47: Haut/long (en m)
A48: Entrée d'air module 30 | C48: =$H$5 -> -9 | E48: 1 | H48: =IFERROR(VLOOKUP(designation1,source1,2,FALSE),0) -> 6.8 | I48: =IFERROR(IF(EXACT(LEFT($A48,6),"Coffre"),$G48,$F48*$G48),"/") -> 0 | J48: =IFERROR(IF(EXACT(LEFT($A48,6),"Entrée"),$E48*$H48,$I48*$H48*$E48),"/") -> 6.8 | K48: 1 | M48: =$H$8-$C48 -> 28 | N48: 1 | O48: =IFERROR(IF($J48>0,$K48*$M48*$N48*$M$66*($J48/'local 1'!$F$42),$I$10*$K48*$M48),0) -> 0
A49: Entrée d'air module 45 | C49: =$H$5 -> -9 | E49: 1 | H49: =IFERROR(VLOOKUP(designation2,source1,2,FALSE),0) -> 10.2 | I49: =IFERROR(IF(EXACT(LEFT($A49,6),"Coffre"),$G49,$F49*$G49),"/") -> 0 | J49: =IFERROR(IF(EXACT(LEFT($A49,6),"Entrée"),$E49*$H49,$I49*$H49*$E49),"/") -> 10.2 | K49: 1 | M49: =$H$8-$C49 -> 28 | N49: 1 | O49: =IFERROR(IF($J49>0,$K49*$M49*$N49*$M$66*($J49/'local 1'!$F$42),$I$10*$K49*$M49),0) -> 0
A50: Non renseigné | C50: -9 | E50: 1 | H50: =IFERROR(VLOOKUP(designation3,source1,2,FALSE),0) -> 0 | I50: 0 | J50: 0 | M50: 28 | N50: 1 | O50: =IFERROR(IF($J50>0,$K50*$M50*$N50*$M$66*($J50/'local 1'!$F$42),$I$10*$K50*$M50),0) -> 0
A51: Non renseigné | C51: -9 | E51: 1 | H51: =IFERROR(VLOOKUP(designation4,source1,2,FALSE),0) -> 0 | I51: 0 | J51: 0 | M51: 28 | N51: 1 | O51: =IFERROR(IF($J51>0,$K51*$M51*$N51*$M$66*($J51/'local 1'!$F$42),$I$10*$K51*$M51),0) -> 0
A52: Non renseigné | C52: -9 | E52: 1 | H52: =IFERROR(VLOOKUP(designation5,source1,2,FALSE),0) -> 0 | I52: 0 | J52: 0 | M52: 28 | N52: 1 | O52: =IFERROR(IF($J52>0,$K52*$M52*$N52*$M$66*($J52/'local 1'!$F$42),$I$10*$K52*$M52),0) -> 0
A53: Non renseigné | C53: -9 | E53: 1 | H53: =IFERROR(VLOOKUP(designation6,source1,2,FALSE),0) -> 0 | I53: 0 | J53: 0 | M53: 28 | N53: 1 | O53: =IFERROR(IF($J53>0,$K53*$M53*$N53*$M$66*($J53/'local 1'!$F$42),$I$10*$K53*$M53),0) -> 0
A54: Non renseigné | C54: -9 | E54: 1 | H54: =IFERROR(VLOOKUP(designation7,source1,2,FALSE),0) -> 0 | I54: 0 | J54: 0 | M54: 28 | N54: 1 | O54: =IFERROR(IF($J54>0,$K54*$M54*$N54*$M$66*($J54/'local 1'!$F$42),$I$10*$K54*$M54),0) -> 0
A55: Non renseigné | C55: -9 | E55: 1 | H55: =IFERROR(VLOOKUP(designation8,source1,2,FALSE),0) -> 0 | I55: 0 | J55: 0 | M55: 28 | N55: 1 | O55: =IFERROR(IF($J55>0,$K55*$M55*$N55*$M$66*($J55/'local 1'!$F$42),$I$10*$K55*$M55),0) -> 0
A56: Non renseigné | C56: -9 | E56: 1 | H56: =IFERROR(VLOOKUP(designation9,source1,2,FALSE),0) -> 0 | I56: 0 | J56: 0 | M56: 28 | N56: 1 | O56: =IFERROR(IF($J56>0,$K56*$M56*$N56*$M$66*($J56/'local 1'!$F$42),$I$10*$K56*$M56),0) -> 0
A57: Non renseigné | C57: -9 | E57: 1 | H57: =IFERROR(VLOOKUP(designation10,source1,2,FALSE),0) -> 0 | I57: 0 | J57: 0 | M57: 28 | N57: 1 | O57: =IFERROR(IF($J57>0,$K57*$M57*$N57*$M$66*($J57/'local 1'!$F$42),$I$10*$K57*$M57),0) -> 0
A58: Non renseigné | C58: -9 | E58: 1 | H58: =IFERROR(VLOOKUP(designation11,source1,2,FALSE),0) -> 0 | I58: 0 | J58: 0 | M58: 28 | N58: 1 | O58: =IFERROR(IF($J58>0,$K58*$M58*$N58*$M$66*($J58/'local 1'!$F$42),$I$10*$K58*$M58),0) -> 0
A59: Non renseigné | C59: -9 | E59: 1 | H59: =IFERROR(VLOOKUP(designation12,source1,2,FALSE),0) -> 0 | I59: 0 | J59: 0 | M59: 28 | N59: 1 | O59: =IFERROR(IF($J59>0,$K59*$M59*$N59*$M$66*($J59/'local 1'!$F$42),$I$10*$K59*$M59),0) -> 0
A60: Non renseigné | C60: -9 | E60: 1 | H60: =IFERROR(VLOOKUP(designation13,source1,2,FALSE),0) -> 0 | I60: 0 | J60: 0 | M60: 28 | N60: 1 | O60: =IFERROR(IF($J60>0,$K60*$M60*$N60*$M$66*($J60/'local 1'!$F$42),$I$10*$K60*$M60),0) -> 0
A61: Non renseigné | C61: -9 | E61: 1 | H61: =IFERROR(VLOOKUP(designation14,source1,2,FALSE),0) -> 0 | I61: 0 | J61: 0 | M61: 28 | N61: 1 | O61: =IFERROR(IF($J61>0,$K61*$M61*$N61*$M$66*($J61/'local 1'!$F$42),$I$10*$K61*$M61),0) -> 0
A62: Non renseigné | C62: -9 | E62: 1 | H62: =IFERROR(VLOOKUP(designation15,source1,2,FALSE),0) -> 0 | I62: 0 | J62: 0 | M62: 28 | N62: 1 | O62: =IFERROR(IF($J62>0,$K62*$M62*$N62*$M$66*($J62/'local 1'!$F$42),$I$10*$K62*$M62),0) -> 0
A63: Non renseigné | C63: -9 | E63: 1 | H63: =IFERROR(VLOOKUP(designation16,source1,2,FALSE),0) -> 0 | I63: 0 | J63: 0 | M63: 28 | N63: 1 | O63: =IFERROR(IF($J63>0,$K63*$M63*$N63*$M$66*($J63/'local 1'!$F$42),$I$10*$K63*$M63),0) -> 0
I64: Σ | J64: =SUM(J48:J63) -> 17
K65: Débit réglementaire (en m3/h) : | M65: 130
I66: Ventilation naturelle | K66: Coefficient : | L66: =IFERROR(VLOOKUP(designation17,typeventil,2,FALSE),0) -> 1.3 | M66: =$M$65*$L$66 -> 169
K67: n.V - Débit rég. (en m3/h) | M67: =I10-M65 -> -30
K68: Total pertes aérauliques (en W) : | M68: =SUM(O48:O63) -> 0

Sheet Bilan
C3: Pertes statiques | D3: Pertes Aérauliques | E3: Total | F3: hors pt | G3: pt | J3: Déperditions statiques (hors ponts thermiques) | K3: Déperditions statiques (hors ponts thermiques) | L3: Ratio Ponts Thermiques | M3: Ratio Ponts Thermiques
B4: ='local 1'!B1:K1 ->  | C4: ='local 1'!M43 -> 1176.7 | D4: ='local 1'!M68 -> 0 | E4: =SUM(C4:D4) -> 1176.7 | F4: =SUM(SUMIF('local 1'!B18:B39,"ME",'local 1'!O18:O39),SUMIF('local 1'!B18:B39,"FE",'local 1'!O18:O39),SUMIF('local 1'!B18:B39,"PO",'local 1'!O18:O39),SUMIF('local 1'!B18:B39,"PLH",'local 1'!O18:O39),SUMIF('local 1'!B18:B39,"PLB",'local 1'!O18:O39))+$D4 -> 1170.4 | G4: =SUMIF('local 1'!B18:B39,"PT",'local 1'!O18:O39) -> 6.3 | I4: =B4 ->  | J4: =IFERROR((SUM(SUMIF('local 1'!B18:B39,"ME",'local 1'!O18:O39),SUMIF('local 1'!B18:B39,"FE",'local 1'!O18:O39),SUMIF('local 1'!B18:B39,"PO",'local 1'!O18:O39),SUMIF('local 1'!B18:B39,"PLH",'local 1'!O18:O39),SUMIF('local 1'!B18:B39,"PLB",'local 1'!O18:O39)))/'local 1'!$F$9,0) -> 23.408 | K4: =IFERROR((SUM(SUMIF('local 1'!B18:B39,"ME",'local 1'!O18:O39),SUMIF('local 1'!B18:B39,"FE",'local 1'!O18:O39),SUMIF('local 1'!B18:B39,"PO",'local 1'!O18:O39),SUMIF('local 1'!B18:B39,"PLH",'local 1'!O18:O39),SUMIF('local 1'!B18:B39,"PLB",'local 1'!O18:O39)))/'local 1'!$F$11,0) -> 9.3632 | L4: =IFERROR(SUMIF('local 1'!B18:B39,"PT",'local 1'!O18:O39)/'local 1'!$F$9,0) -> 0.126 | M4: =IFERROR(SUMIF('local 1'!B18:B39,"PT",'local 1'!O18:O39)/'local 1'!$F$11,0) -> 0.0504
B5: ='local 2'!B1:K1 ->  | C5: ='local 2'!M43 -> 1089.025 | D5: ='local 2'!M68 -> 0 | E5: 1089.025 | F5: =SUM(SUMIF('local 2'!B18:B39,"ME",'local 2'!O18:O39),SUMIF('local 2'!B18:B39,"FE",'local 2'!O18:O39),SUMIF('local 2'!B18:B39,"PO",'local 2'!O18:O39),SUMIF('local 2'!B18:B39,"PLH",'local 2'!O18:O39),SUMIF('local 2'!B18:B39,"PLB",'local 2'!O18:O39))+$D5 -> 1084.125 | G5: =SUMIF('local 2'!B18:B39,"PT",'local 2'!O18:O39) -> 4.9 | J5: =IFERROR((SUM(SUMIF('local 2'!B18:B39,"ME",'local 2'!O18:O39),SUMIF('local 2'!B18:B39,"FE",'local 2'!O18:O39),SUMIF('local 2'!B18:B39,"PO",'local 2'!O18:O39),SUMIF('local 2'!B18:B39,"PLH",'local 2'!O18:O39),SUMIF('local 2'!B18:B39,"PLB",'local 2'!O18:O39)))/'local 2'!$F$9,0) -> 72.275 | K5: =IFERROR((SUM(SUMIF('local 2'!B18:B39,"ME",'local 2'!O18:O39),SUMIF('local 2'!B18:B39,"FE",'local 2'!O18:O39),SUMIF('local 2'!B18:B39,"PO",'local 2'!O18:O39),SUMIF('local 2'!B18:B39,"PLH",'local 2'!O18:O39),SUMIF('local 2'!B18:B39,"PLB",'local 2'!O18:O39)))/'local 2'!$F$11,0) -> 28.91 | L5: =IFERROR(SUMIF('local 2'!B18:B39,"PT",'local 2'!O18:O39)/'local 2'!$F$9,0) -> 0.3266666667 | M5: =IFERROR(SUMIF('local 2'!B18:B39,"PT",'local 2'!O18:O39)/'local 2'!$F$11,0) -> 0.1306666667 | P5: =F10 -> déperditions statiques et aérauliques hors ponts thermiques | Q5: déperditions linéiques
B6: ='local 3'!B1:K1 ->  | C6: ='local 3'!M43 -> 0 | D6: ='local 3'!M68 -> 0 | E6: 0 | F6: =SUM(SUMIF('local 3'!B18:B39,"ME",'local 3'!O18:O39),SUMIF('local 3'!B18:B39,"FE",'local 3'!O18:O39),SUMIF('local 3'!B18:B39,"PO",'local 3'!O18:O39),SUMIF('local 3'!B18:B39,"PLH",'local 3'!O18:O39),SUMIF('local 3'!B18:B39,"PLB",'local 3'!O18:O39))+$D6 -> 0 | G6: =SUMIF('local 3'!B18:B39,"PT",'local 3'!O18:O39) -> 0 | J6: =IFERROR((SUM(SUMIF('local 3'!B18:B39,"ME",'local 3'!O18:O39),SUMIF('local 3'!B18:B39,"FE",'local 3'!O18:O39),SUMIF('local 3'!B18:B39,"PO",'local 3'!O18:O39),SUMIF('local 3'!B18:B39,"PLH",'local 3'!O18:O39),SUMIF('local 3'!B18:B39,"PLB",'local 3'!O18:O39)))/'local 3'!$F$9,0) -> 0 | K6: =IFERROR((SUM(SUMIF('local 3'!B18:B39,"ME",'local 3'!O18:O39),SUMIF('local 3'!B18:B39,"FE",'local 3'!O18:O39),SUMIF('local 3'!B18:B39,"PO",'local 3'!O18:O39),SUMIF('local 3'!B18:B39,"PLH",'local 3'!O18:O39),SUMIF('local 3'!B18:B39,"PLB",'local 3'!O18:O39)))/'local 3'!$F$11,0) -> 0 | L6: =IFERROR(SUMIF('local 3'!B18:B39,"PT",'local 3'!O18:O39)/'local 3'!$F$9,0) -> 0 | M6: =IFERROR(SUMIF('local 3'!B18:B39,"PT",'local 3'!O18:O39)/'local 3'!$F$11,0) -> 0 | P6: 96.95943403 | Q6: 3.040565967
B7: ='local 4'!B1:K1 ->  | C7: ='local 4'!M43 -> 0 | D7: ='local 4'!M68 -> 0 | E7: 0 | F7: =SUM(SUMIF('local 4'!B18:B39,"ME",'local 4'!O18:O39),SUMIF('local 4'!B18:B39,"FE",'local 4'!O18:O39),SUMIF('local 4'!B18:B39,"PO",'local 4'!O18:O39),SUMIF('local 4'!B18:B39,"PLH",'local 4'!O18:O39),SUMIF('local 4'!B18:B39,"PLB",'local 4'!O18:O39))+$D7 -> 0 | G7: =SUMIF('local 4'!B18:B39,"PT",'local 4'!O18:O39) -> 0 | J7: =IFERROR((SUM(SUMIF('local 4'!B18:B39,"ME",'local 4'!O18:O39),SUMIF('local 4'!B18:B39,"FE",'local 4'!O18:O39),SUMIF('local 4'!B18:B39,"PO",'local 4'!O18:O39),SUMIF('local 4'!B18:B39,"PLH",'local 4'!O18:O39),SUMIF('local 4'!B18:B39,"PLB",'local 4'!O18:O39)))/'local 4'!$F$9,0) -> 0 | K7: =IFERROR((SUM(SUMIF('local 4'!B18:B39,"ME",'local 4'!O18:O39),SUMIF('local 4'!B18:B39,"FE",'local 4'!O18:O39),SUMIF('local 4'!B18:B39,"PO",'local 4'!O18:O39),SUMIF('local 4'!B18:B39,"PLH",'local 4'!O18:O39),SUMIF('local 4'!B18:B39,"PLB",'local 4'!O18:O39)))/'local 4'!$F$11,0) -> 0 | L7: =IFERROR(SUMIF('local 4'!B18:B39,"PT",'local 4'!O18:O39)/'local 4'!$F$9,0) -> 0 | M7: =IFERROR(SUMIF('local 4'!B18:B39,"PT",'local 4'!O18:O39)/'local 4'!$F$11,0) -> 0
B8: ='local 5'!B1:K1 ->  | C8: ='local 5'!M43 -> 59.5 | D8: ='local 5'!M68 -> 0 | E8: 59.5 | F8: =SUM(SUMIF('local 5'!B18:B39,"ME",'local 5'!O18:O39),SUMIF('local 5'!B18:B39,"FE",'local 5'!O18:O39),SUMIF('local 5'!B18:B39,"PO",'local 5'!O18:O39),SUMIF('local 5'!B18:B39,"PLH",'local 5'!O18:O39),SUMIF('local 5'!B18:B39,"PLB",'local 5'!O18:O39))+$D8 -> 0 | G8: =SUMIF('local 5'!B18:B39,"PT",'local 5'!O18:O39) -> 59.5 | J8: =IFERROR((SUM(SUMIF('local 5'!B18:B39,"ME",'local 5'!O18:O39),SUMIF('local 5'!B18:B39,"FE",'local 5'!O18:O39),SUMIF('local 5'!B18:B39,"PO",'local 5'!O18:O39),SUMIF('local 5'!B18:B39,"PLH",'local 5'!O18:O39),SUMIF('local 5'!B18:B39,"PLB",'local 5'!O18:O39)))/'local 5'!$F$9,0) -> 0 | K8: =IFERROR((SUM(SUMIF('local 5'!B18:B39,"ME",'local 5'!O18:O39),SUMIF('local 5'!B18:B39,"FE",'local 5'!O18:O39),SUMIF('local 5'!B18:B39,"PO",'local 5'!O18:O39),SUMIF('local 5'!B18:B39,"PLH",'local 5'!O18:O39),SUMIF('local 5'!B18:B39,"PLB",'local 5'!O18:O39)))/'local 5'!$F$11,0) -> 0 | L8: =IFERROR(SUMIF('local 5'!B18:B39,"PT",'local 5'!O18:O39)/'local 5'!$F$9,0) -> 2.975 | M8: =IFERROR(SUMIF('local 5'!B18:B39,"PT",'local 5'!O18:O39)/'local 5'!$F$11,0) -> 1.19
B9: Total | C9: =SUM(C4:C8) -> 2325.225 | D9: =SUM(D4:D8) -> 0 | E9: 2325.225 | F9: =SUM(F4:F8) -> 2254.525 | G9: =SUM(G4:G8) -> 70.7 | I9: Total | J9: =IFERROR((SUM(SUMIF('local 1'!B18:B39,"ME",'local 1'!O18:O39),SUMIF('local 1'!B18:B39,"FE",'local 1'!O18:O39),SUMIF('local 1'!B18:B39,"PO",'local 1'!O18:O39),SUMIF('local 1'!B18:B39,"PLH",'local 1'!O18:O39),SUMIF('local 1'!B18:B39,"PLB",'local 1'!O18:O39),SUMIF('local 2'!B18:B39,"ME",'local 2'!O18:O39),SUMIF('local 2'!B18:B39,"FE",'local 2'!O18:O39),SUMIF('local 2'!B18:B39,"PO",'local 2'!O18:O39),SUMIF('local 2'!B18:B39,"PLH",'local 2'!O18:O39),SUMIF('local 2'!B18:B39,"PLB",'local 2'!O18:O39),SUMIF('local 3'!B18:B39,"ME",'local 3'!O18:O39),SUMIF('local 3'!B18:B39,"FE",'local 3'!O18:O39),SUMIF('local 3'!B18:B39,"PO",'local 3'!O18:O39),SUMIF('local 3'!B18:B39,"PLH",'local 3'!O18:O39),SUMIF('local 3'!B18:B39,"PLB",'local 3'!O18:O39),SUMIF('local 4'!B18:B39,"ME",'local 4'!O18:O39),SUMIF('local 4'!B18:B39,"FE",'local 4'!O18:O39),SUMIF('local 4'!B18:B39,"PO",'local 4'!O18:O39),SUMIF('local 4'!B18:B39,"PLH",'local 4'!O18:O39),SUMIF('local 4'!B18:B39,"PLB",'local 4'!O18:O39),SUMIF('local 5'!B18:B39,"ME",'local 5'!O18:O39),SUMIF('local 5'!B18:B39,"FE",'local 5'!O18:O39),SUMIF('local 5'!B18:B39,"PO",'local 5'!O18:O39),SUMIF('local 5'!B18:B39,"PLH",'local 5'!O18:O39),SUMIF('local 5'!B18:B39,"PLB",'local 5'!O18:O39),SUMIF(#REF!,"ME",#REF!),SUMIF(#REF!,"FE",#REF!),SUMIF(#REF!,"PO",#REF!),SUMIF(#REF!,"PLH",#REF!),SUMIF(#REF!,"PLB",#REF!),SUMIF(#REF!,"ME",#REF!),SUMIF(#REF!,"FE",#REF!),SUMIF(#REF!,"PO",#REF!),SUMIF(#REF!,"PLH",#REF!),SUMIF(#REF!,"PLB",#REF!),SUMIF(#REF!,"ME",#REF!),SUMIF(#REF!,"FE",#REF!),SUMIF(#REF!,"PO",#REF!),SUMIF(#REF!,"PLH",#REF!),SUMIF(#REF!,"PLB",#REF!),SUMIF(#REF!,"ME",#REF!),SUMIF(#REF!,"FE",#REF!),SUMIF(#REF!,"PO",#REF!),SUMIF(#REF!,"PLH",#REF!),SUMIF(#REF!,"PLB",#REF!),SUMIF(#REF!,"ME",#REF!),SUMIF(#REF!,"FE",#REF!),SUMIF(#REF!,"PO",#REF!),SUMIF(#REF!,"PLH",#REF!),SUMIF(#REF!,"PLB",#REF!)))/(SUM('local 1'!$F$9,'local 2'!$F$9,'local 3'!$F$9,'local 4'!$F$9,'local 5'!$F$9,#REF!,#REF!,#REF!,#REF!,#REF!)),0) -> 0 | K9: =IFERROR((SUM(SUMIF('local 1'!B18:B39,"ME",'local 1'!O18:O39),SUMIF('local 1'!B18:B39,"FE",'local 1'!O18:O39),SUMIF('local 1'!B18:B39,"PO",'local 1'!O18:O39),SUMIF('local 1'!B18:B39,"PLH",'local 1'!O18:O39),SUMIF('local 1'!B18:B39,"PLB",'local 1'!O18:O39),SUMIF('local 2'!B18:B39,"ME",'local 2'!O18:O39),SUMIF('local 2'!B18:B39,"FE",'local 2'!O18:O39),SUMIF('local 2'!B18:B39,"PO",'local 2'!O18:O39),SUMIF('local 2'!B18:B39,"PLH",'local 2'!O18:O39),SUMIF('local 2'!B18:B39,"PLB",'local 2'!O18:O39),SUMIF('local 3'!B18:B39,"ME",'local 3'!O18:O39),SUMIF('local 3'!B18:B39,"FE",'local 3'!O18:O39),SUMIF('local 3'!B18:B39,"PO",'local 3'!O18:O39),SUMIF('local 3'!B18:B39,"PLH",'local 3'!O18:O39),SUMIF('local 3'!B18:B39,"PLB",'local 3'!O18:O39),SUMIF('local 4'!B18:B39,"ME",'local 4'!O18:O39),SUMIF('local 4'!B18:B39,"FE",'local 4'!O18:O39),SUMIF('local 4'!B18:B39,"PO",'local 4'!O18:O39),SUMIF('local 4'!B18:B39,"PLH",'local 4'!O18:O39),SUMIF('local 4'!B18:B39,"PLB",'local 4'!O18:O39),SUMIF('local 5'!B18:B39,"ME",'local 5'!O18:O39),SUMIF('local 5'!B18:B39,"FE",'local 5'!O18:O39),SUMIF('local 5'!B18:B39,"PO",'local 5'!O18:O39),SUMIF('local 5'!B18:B39,"PLH",'local 5'!O18:O39),SUMIF('local 5'!B18:B39,"PLB",'local 5'!O18:O39),SUMIF(#REF!,"ME",#REF!),SUMIF(#REF!,"FE",#REF!),SUMIF(#REF!,"PO",#REF!),SUMIF(#REF!,"PLH",#REF!),SUMIF(#REF!,"PLB",#REF!),SUMIF(#REF!,"ME",#REF!),SUMIF(#REF!,"FE",#REF!),SUMIF(#REF!,"PO",#REF!),SUMIF(#REF!,"PLH",#REF!),SUMIF(#REF!,"PLB",#REF!),SUMIF(#REF!,"ME",#REF!),SUMIF(#REF!,"FE",#REF!),SUMIF(#REF!,"PO",#REF!),SUMIF(#REF!,"PLH",#REF!),SUMIF(#REF!,"PLB",#REF!),SUMIF(#REF!,"ME",#REF!),SUMIF(#REF!,"FE",#REF!),SUMIF(#REF!,"PO",#REF!),SUMIF(#REF!,"PLH",#REF!),SUMIF(#REF!,"PLB",#REF!),SUMIF(#REF!,"ME",#REF!),SUMIF(#REF!,"FE",#REF!),SUMIF(#REF!,"PO",#REF!),SUMIF(#REF!,"PLH",#REF!),SUMIF(#REF!,"PLB",#REF!)))/(SUM('local 1'!$F$11,'local 2'!$F$11,'local 3'!$F$11,'local 4'!$F$11,'local 5'!$F$11,#REF!,#REF!,#REF!,#REF!,#REF!)),0) -> 0 | L9: =IFERROR((SUM(SUMIF('local 1'!B18:B39,"PT",'local 1'!O18:O39),SUMIF('local 2'!B18:B39,"PT",'local 2'!O18:O39),SUMIF('local 3'!B18:B39,"PT",'local 3'!O18:O39),SUMIF('local 4'!B18:B39,"PT",'local 4'!O18:O39),SUMIF('local 5'!B18:B39,"PT",'local 5'!O18:O39),SUMIF(#REF!,"PT",#REF!),SUMIF(#REF!,"PT",#REF!),SUMIF(#REF!,"PT",#REF!),SUMIF(#REF!,"PT",#REF!),SUMIF(#REF!,"PT",#REF!)))/(SUM('local 1'!$F$9,'local 2'!$F$9,'local 3'!$F$9,'local 4'!$F$9,'local 5'!$F$9,#REF!,#REF!,#REF!,#REF!,#REF!)),0) -> 0 | M9: =IFERROR((SUM(SUMIF('local 1'!B18:B39,"PT",'local 1'!O18:O39),SUMIF('local 2'!B18:B39,"PT",'local 2'!O18:O39),SUMIF('local 3'!B18:B39,"PT",'local 3'!O18:O39),SUMIF('local 4'!B18:B39,"PT",'local 4'!O18:O39),SUMIF('local 5'!B18:B39,"PT",'local 5'!O18:O39),SUMIF(#REF!,"PT",#REF!),SUMIF(#REF!,"PT",#REF!),SUMIF(#REF!,"PT",#REF!),SUMIF(#REF!,"PT",#REF!),SUMIF(#REF!,"PT",#REF!)))/(SUM('local 1'!$F$11,'local 2'!$F$11,'local 3'!$F$11,'local 4'!$F$11,'local 5'!$F$11,#REF!,#REF!,#REF!,#REF!,#REF!)),0) -> 0
F10: déperditions statiques et aérauliques hors ponts thermiques | G10: déperditions linéiques
F11: =(F9*100)/E9 -> 96.95943403 | G11: =(G9*100)/E9 -> 3.040565967 | I11: Proportion des déperditions linéiques du bâtiment :
B12: Déperditions statiques et aérauliques par m² de surface plancher :
B13: Déperditions par m² (en W) | C13: =IFERROR(E9/('local 1'!F9+'local 2'!F9+'local 3'!F9+'local 4'!F9+'local 5'!F9+#REF!+#REF!+#REF!+#REF!+#REF!),0) -> 0
B15: Déperditions statiques et aérauliques rapportée au volume :
B16: Déperditions par m3 (en W) | C16: =IFERROR(E9/('local 1'!F11+'local 2'!F11+'local 3'!F11+'local 4'!F11+'local 5'!F11+#REF!+#REF!+#REF!+#REF!+#REF!),0) -> 0
T48: =D3 -> Pertes Aérauliques
S49: =B4 ->  | T49: =D4 -> 0
S50: =B5 ->  | T50: =D5 -> 0
S51: =B6 ->  | T51: =D6 -> 0
S52: =B7 ->  | T52: =D7 -> 0
S53: =B8 ->  | T53: =D8 -> 0
S54: =#REF! ->  | T54: =#REF! -> 
S55: =#REF! ->  | T55: =#REF! -> 
S56: =#REF! ->  | T56: =#REF! -> 
S57: =#REF! ->  | T57: =#REF! -> 
S58: =#REF! ->  | T58: =#REF! -> 
